Workbook

Sheet 2020年特岗招聘体检筛选 (hidden)
A1: 附表4
A2: 罗甸县2020年（中央或地方）“特岗计划”教师招聘体检人员筛选名单
A3: 市（州）\县（市、区）教育局（盖章） 填报人： 负责人： 联系电话： 填表日期：
A4: 序号 | B4: 姓名 | C4: 笔试准考准 | D4: 面试准考证 | E4: 性别 | F4: 民族 | G4: 出生日期 | H4: 政治面貌 | I4: 身份证号 | J4: 学历 | K4: 学位 | L4: 毕业学校 | M4: 所学专业 | N4: 应往届 | O4: 是否建档立卡贫困户和易地扶贫搬迁户家庭毕业生 | P4: 是否师范类专业 | Q4: 有否有教师资格证 | R4: 教师资格证类别 | S4: 家庭地址 | T4: 联系电话 | U4: 报考县 | V4: 报考学段 | W4: 报考学科 | X4: 审查结果 | Y4: 笔试成绩 | Z4: 面试成绩 | AA4: 考试总成绩 | AB4: 是否进入体检 | AC4: 体检结果 | AD4: 岗前培训结果 | AE4: 录取县 | AF4: 录取学段 | AG4: 录取学科 | AH4: 任职学校 | AI4: 备注（中央“特岗计划”/地方“特岗计划”） | AJ4: 考场号 | AK4: 顺序
A5: 534 | B5: 张潇银 | C5: ld20200893 | D5: ld2020534 | E5: 女 | F5: 苗族 | G5: 1996-05-16 | H5: 共青团员 | I5: 522630199605160425 | J5: 大学本科 | L5: 贵州民族大学 | M5: 应用化学（精细化工方向） | N5: 往届 | O5: 建档立卡贫困户家庭毕业生 | P5: 非师范类 | Q5: 无 | R5: 无 | S5: 贵州省黔东南苗族侗族自治州台江县老屯乡老屯村四组 | T5: 13035563004 | U5: 罗甸县 | V5: 初中 | W5: 综合 | Y5: 66.5 | Z5: 86.43 | AA5: =Y5*0.4+Z5*0.6 -> 78.46 | AB5: 是 | AI5: 中央（特岗计划） | AJ5: 第十七考场 | AK5: 1
A6: 531 | B6: 覃文耐 | C6: ld20200869 | D6: ld2020531 | E6: 女 | F6: 布依族 | G6: 1995-07-05 | H6: 共青团员 | I6: 522732199507051020 | J6: 大学本科 | L6: 滨州学院 | M6: 历史学（师范类） | N6: 应届 | O6: 建档立卡贫困户家庭毕业生 | P6: 师范类 | Q6: 无 | R6: 无 | S6: 贵州省黔南布依族苗族自治州三都水族自治县 | T6: 15117852286 | U6: 罗甸县 | V6: 初中 | W6: 综合 | Y6: 67.5 | Z6: 85.33 | AA6: 78.20 | AB6: 是 | AI6: 中央（特岗计划） | AJ6: 第十七考场 | AK6: 1
A7: 535 | B7: 卢丹 | C7: ld20200894 | D7: ld2020535 | E7: 女 | F7: 苗族 | G7: 1996-03-29 | H7: 共青团员 | I7: 522728199603291548 | J7: 大学本科 | L7: 安顺学院 | M7: 思想政治教育 | N7: 应届 | O7: 建档立卡贫困户家庭毕业生 | P7: 师范类 | Q7: 无 | R7: 无 | S7: 贵州省黔南布依族苗族自治州罗甸县边阳镇栗木乡新场村尖坡组19-1号 | T7: 17585233912 | U7: 罗甸县 | V7: 初中 | W7: 综合 | Y7: 64.5 | Z7: 87.20 | AA7: 78.12 | AB7: 是 | AI7: 中央（特岗计划） | AJ7: 第十七考场 | AK7: 1
A8: 532 | B8: 朱云 | C8: ld20200879 | D8: ld2020532 | E8: 女 | F8: 汉族 | G8: 1996-10-20 | H8: 共青团员 | I8: 522728199610202742 | J8: 大学本科 | L8: 黔南民族师范学院 | M8: 视觉传达设计 | N8: 应届 | O8: 建档立卡贫困户家庭毕业生 | P8: 非师范类 | Q8: 无 | R8: 无 | S8: 贵州省黔南布依族苗族自治州罗甸县逢亭镇上隆茶果场一分场5号 | T8: 15117805908 | U8: 罗甸县 | V8: 初中 | W8: 综合 | Y8: 64.0 | Z8: 87.13 | AA8: 77.88 | AI8: 中央（特岗计划） | AJ8: 第十七考场 | AK8: 1
A9: 533 | B9: 莫玉海 | C9: ld20200883 | D9: ld2020533 | E9: 男 | F9: 布依族 | G9: 1996-02-15 | H9: 群众 | I9: 522728199602153637 | J9: 大学本科 | L9: 贵州民族大学 | M9: 产品设计 | N9: 往届 | O9: 建档立卡贫困户家庭毕业生 | P9: 非师范类 | Q9: 无 | R9: 无 | S9: 贵州省黔南布依族苗族自治州罗甸县沫阳镇里怀村里院组16-2号 | T9: 18375044007 | U9: 罗甸县 | V9: 初中 | W9: 综合 | Y9: 63.5 | Z9: 84.97 | AA9: 76.38 | AI9: 中央（特岗计划） | AJ9: 第十七考场 | AK9: 1
A10: 536 | B10: 谭三梅 | C10: ld20200896 | D10: ld2020536 | E10: 女 | F10: 汉族 | G10: 1993-09-19 | H10: 共青团员 | I10: 522727199309191523 | J10: 大学本科 | L10: 黔南民族师范学院 | M10: 历史学 | N10: 应届 | O10: 建档立卡贫困户家庭毕业生 | P10: 师范类 | Q10: 有 | R10: 高级中学教师资格 | S10: 贵州省黔南布依族苗族自治州平塘县 | T10: 18722829185 | U10: 罗甸县 | V10: 初中 | W10: 综合 | Y10: 59.0 | Z10: 84.87 | AA10: 74.52 | AI10: 中央（特岗计划） | AJ10: 第十七考场 | AK10: 1
A11: 537 | B11: 段显静 | C11: ld20200844 | D11: ld2020537 | E11: 女 | F11: 汉族 | G11: 1999-12-15 | H11: 共青团员 | I11: 522727199912152422 | J11: 大学本科 | L11: 天津师范大学 | M11: 化学生物学 | N11: 应届 | O11: 建档立卡贫困户家庭毕业生 | P11: 非师范类 | Q11: 无 | R11: 无 | S11: 贵州省黔南布依族苗族自治州平塘县堡上村甲耳组72号 | T11: 13765484515 | U11: 罗甸县 | V11: 初中 | W11: 综合 | Y11: 52.5 | Z11: 84.40 | AA11: 71.64 | AI11: 中央（特岗计划） | AJ11: 第十七考场 | AK11: 1
A12: 530 | B12: 黄昌荣 | C12: ld20200853 | D12: ld2020530 | E12: 男 | F12: 苗族 | G12: 1994-05-15 | H12: 共青团员 | I12: 522326199405153051 | J12: 大学本科 | L12: 凯里学院 | M12: 物理学 | N12: 应届 | O12: 建档立卡贫困户家庭毕业生 | P12: 师范类 | Q12: 无 | R12: 无 | S12: 贵州省黔西南布依族苗族自治州望谟县 | T12: 18385702486 | U12: 罗甸县 | V12: 初中 | W12: 综合 | Y12: 55.5 | Z12: 缺考 | AA12: =Y12*0.4 -> 22.20 | AI12: 中央（特岗计划） | AJ12: 第十七考场 | AK12: 1
A13: 431 | B13: 韦泽慧 | C13: ld20200641 | D13: ld2020431 | E13: 女 | F13: 水族 | G13: 1995-03-18 | H13: 共青团员 | I13: 522726199503183520 | J13: 大学本科 | L13: 贵州师范大学 | M13: 思想政治教育 | N13: 应届 | O13: 都不是 | P13: 师范类 | Q13: 无 | R13: 高级中学教师资格 | S13: 贵州省黔南布依族苗族自治州独山县 | T13: 18375029478 | U13: 罗甸县 | V13: 初中 | W13: 政治 | Y13: 71.5 | Z13: 86.93 | AA13: =Y13*0.4+Z13*0.6 -> 80.76 | AB13: 是 | AI13: 中央（特岗计划） | AJ13: 第十四考场 | AK13: 1
A14: 436 | B14: 田浪 | C14: ld20200619 | D14: ld2020436 | E14: 男 | F14: 土家族 | G14: 1995-08-11 | H14: 中共预备党员 | I14: 52222719950811761X | J14: 大学本科 | L14: 贵阳学院 | M14: 思想政治教育 | N14: 应届 | O14: 都不是 | P14: 师范类 | Q14: 无 | R14: 无 | S14: 贵州省铜仁市德江县 | T14: 13885612242 | U14: 罗甸县 | V14: 初中 | W14: 政治 | Y14: 69.3 | Z14: 86.87 | AA14: 79.84 | AB14: 是 | AI14: 中央（特岗计划） | AJ14: 第十四考场 | AK14: 1
A15: 440 | B15: 岑泽青 | C15: ld20200628 | D15: ld2020440 | E15: 女 | F15: 苗族 | G15: 1997-09-09 | H15: 共青团员 | I15: 522728199709093320 | J15: 大学本科 | L15: 兴义民族师范学院 | M15: 思想政治教育 | N15: 往届 | O15: 都不是 | P15: 师范类 | Q15: 有 | R15: 高级中学教师资格 | S15: 贵州省黔南布依族苗族自治州罗甸县木引镇水井村一组65号 | T15: 15117344820 | U15: 罗甸县 | V15: 初中 | W15: 政治 | Y15: 68.5 | Z15: 86.84 | AA15: 79.50 | AB15: 是 | AI15: 中央（特岗计划） | AJ15: 第十四考场 | AK15: 1
A16: 434 | B16: 韦慢 | C16: ld20200603 | D16: ld2020434 | E16: 女 | F16: 布依族 | G16: 1997-08-30 | H16: 共青团员 | I16: 522326199708301226 | J16: 大学本科 | L16: 遵义师范学院 | M16: 思想政治教育 | N16: 应届 | O16: 都不是 | P16: 师范类 | Q16: 无 | R16: 无 | S16: 贵州省黔西南布依族苗族自治州望谟县 | T16: 15121581610 | U16: 罗甸县 | V16: 初中 | W16: 政治 | Y16: 69.5 | Z16: 86.14 | AA16: 79.48 | AB16: 是 | AI16: 中央（特岗计划） | AJ16: 第十四考场 | AK16: 1
A17: 439 | B17: 冉孟州 | C17: ld20200624 | D17: ld2020439 | E17: 男 | F17: 汉族 | G17: 1995-04-22 | H17: 共青团员 | I17: 522727199504223615 | J17: 大学本科 | L17: 黔南民族师范学院 | M17: 思想政治教育 | N17: 往届 | O17: 都不是 | P17: 师范类 | Q17: 有 | R17: 高级中学教师资格 | S17: 贵州省黔南布依族苗族自治州平塘县通州镇翁岗村 | T17: 13638036017 | U17: 罗甸县 | V17: 初中 | W17: 政治 | Y17: 68.3 | Z17: 86.58 | AA17: 79.27 | AB17: 是 | AI17: 中央（特岗计划） | AJ17: 第十四考场 | AK17: 1
A18: 432 | B18: 杨方艳 | C18: ld20200591 | D18: ld2020432 | E18: 女 | F18: 布依族 | G18: 1993-09-08 | H18: 共青团员 | I18: 522731199309080748 | J18: 大学本科 | L18: 河南师范大学 | M18: 思想政治教育 | N18: 往届 | O18: 都不是 | P18: 师范类 | Q18: 有 | R18: 高级中学教师资格 | S18: 贵州省黔南布依族苗族自治州惠水县 | T18: 18385470950 | U18: 罗甸县 | V18: 初中 | W18: 政治 | Y18: 67.0 | Z18: 86.63 | AA18: 78.78 | AI18: 中央（特岗计划） | AJ18: 第十四考场 | AK18: 1
A19: 442 | B19: 谢筱颖 | C19: ld20200639 | D19: ld2020442 | E19: 女 | F19: 汉族 | G19: 1996-03-02 | H19: 共青团员 | I19: 522725199603025822 | J19: 大学本科 | L19: 西华师范大学 | M19: 思想政治教育 | N19: 应届 | O19: 都不是 | P19: 师范类 | Q19: 无 | R19: 无 | S19: 贵州省黔南布依族苗族自治州罗甸县盛世龙泉八栋二单元701 | T19: 18485396726 | U19: 罗甸县 | V19: 初中 | W19: 政治 | Y19: 67.5 | Z19: 86.03 | AA19: 78.62 | AI19: 中央（特岗计划） | AJ19: 第十四考场 | AK19: 1
A20: 435 | B20: 王封琴 | C20: ld20200615 | D20: ld2020435 | E20: 女 | F20: 布依族 | G20: 1998-02-07 | H20: 共青团员 | I20: 522326199802071826 | J20: 大学本科 | L20: 贵州大学 | M20: 思想政治教育 | N20: 应届 | O20: 都不是 | P20: 非师范类 | Q20: 无 | R20: 无 | S20: 贵州省黔西南布依族苗族自治州望谟县坎边乡坎边村交朝组 | T20: 18748943875 | U20: 罗甸县 | V20: 初中 | W20: 政治 | Y20: 67.0 | Z20: 86.06 | AA20: 78.44 | AI20: 中央（特岗计划） | AJ20: 第十四考场 | AK20: 1
A21: 437 | B21: 王涛 | C21: ld20200596 | D21: ld2020437 | E21: 女 | F21: 布依族 | G21: 1995-05-11 | H21: 中共党员 | I21: 522731199505118686 | J21: 大学本科 | L21: 贵州师范学院 | M21: 思想政治教育 | N21: 往届 | O21: 都不是 | P21: 师范类 | Q21: 有 | R21: 高级中学教师资格 | S21: 贵州省黔南布依族苗族自治州惠水县芦山镇民族村5组 | T21: 18786107035 | U21: 罗甸县 | V21: 初中 | W21: 政治 | Y21: 65.3 | Z21: 86.94 | AA21: 78.28 | AI21: 中央（特岗计划） | AJ21: 第十四考场 | AK21: 1
A22: 438 | B22: 杨小丽 | C22: ld20200622 | D22: ld2020438 | E22: 女 | F22: 布依族 | G22: 1997-07-29 | H22: 共青团员 | I22: 522728199707296327 | J22: 硕士研究生 | L22: 贵州师范大学 | M22: 学科教学（思政） | N22: 应届 | O22: 都不是 | P22: 师范类 | Q22: 有 | R22: 高级中学教师资格 | S22: 贵州省黔南布依族苗族自治州罗甸县罗悃镇沿河村纳海组16号 | T22: 18798432592 | U22: 罗甸县 | V22: 初中 | W22: 政治 | Y22: 65.5 | Z22: 86.72 | AA22: 78.23 | AI22: 中央（特岗计划） | AJ22: 第十四考场 | AK22: 1
A23: 441 | B23: 陈再伟 | C23: ld20200631 | D23: ld2020441 | E23: 男 | F23: 汉族 | G23: 1997-04-14 | H23: 共青团员 | I23: 522728199704141813 | J23: 大学本科 | L23: 遵义师范学院 | M23: 思想政治教育 | N23: 应届 | O23: 都不是 | P23: 师范类 | Q23: 无 | R23: 无 | S23: 贵州省黔南布依族苗族自治州罗甸县 | T23: 18285455278 | U23: 罗甸县 | V23: 初中 | W23: 政治 | Y23: 66.5 | Z23: 85.63 | AA23: 77.98 | AI23: 中央（特岗计划） | AJ23: 第十四考场 | AK23: 1
A24: 433 | B24: 吴水芝 | C24: ld20200602 | D24: ld2020433 | E24: 女 | F24: 苗族 | G24: 1998-12-08 | H24: 中共预备党员 | I24: 522624199812084421 | J24: 大学本科 | L24: 贵阳学院 | M24: 思想政治教育 | N24: 应届 | O24: 都不是 | P24: 师范类 | Q24: 无 | R24: 无 | S24: 贵州省黔东南苗族侗族自治州三穗县台烈镇上坪村四组 | T24: 18386650702 | U24: 罗甸县 | V24: 初中 | W24: 政治 | Y24: 66.0 | Z24: 缺考 | AA24: =Y24*0.4 -> 26.40 | AI24: 中央（特岗计划） | AJ24: 第十四考场 | AK24: 1
A25: 21 | B25: 杨雨欣 | C25: ld20200033 | D25: ld2020021 | E25: 女 | F25: 汉族 | G25: 1997-01-01 | H25: 共青团员 | I25: 522728199701015723 | J25: 大学本科 | L25: 贵州师范学院 | M25: 汉语言文学 | N25: 应届 | O25: 都不是 | P25: 师范类 | Q25: 无 | R25: 无 | S25: 贵州省黔南布依族苗族自治州罗甸县 | T25: 18375114082 | U25: 罗甸县 | V25: 初中 | W25: 语文 | Y25: 76.5 | Z25: 88.72 | AA25: =Y25*0.4+Z25*0.6 -> 83.83 | AB25: 是 | AI25: 中央（特岗计划） | AJ25: 第一考场 | AK25: 1
A26: 26 | B26: 岑光珍 | C26: ld20200041 | D26: ld2020026 | E26: 女 | F26: 布依族 | G26: 1998-10-16 | H26: 共青团员 | I26: 52272619981016192X | J26: 大学本科 | L26: 海南大学 | M26: 汉语言文学 | N26: 应届 | O26: 都不是 | P26: 非师范类 | Q26: 无 | R26: 无 | S26: 贵州省黔南布依族苗族自治州独山县 | T26: 18375231006 | U26: 罗甸县 | V26: 初中 | W26: 语文 | Y26: 77.5 | Z26: 86.52 | AA26: 82.91 | AB26: 是 | AI26: 中央（特岗计划） | AJ26: 第一考场 | AK26: 1
A27: 17 | B27: 范玲玲 | C27: ld20200028 | D27: ld2020017 | E27: 女 | F27: 汉族 | G27: 1995-05-07 | H27: 共青团员 | I27: 522401199505075140 | J27: 大学本科 | L27: 贵州师范大学 | M27: 汉语国际教育 | N27: 往届 | O27: 都不是 | P27: 非师范类 | Q27: 有 | R27: 初级中学教师资格 | S27: 贵州省毕节市七星关区对坡镇新门村狮子岩组32号 | T27: 18275011016 | U27: 罗甸县 | V27: 初中 | W27: 语文 | Y27: 73.5 | Z27: 87.64 | AA27: 81.98 | AB27: 是 | AI27: 中央（特岗计划） | AJ27: 第一考场 | AK27: 1
A28: 6 | B28: 刘维琴 | C28: ld20200011 | D28: ld2020006 | E28: 女 | F28: 汉族 | G28: 1997-08-28 | H28: 共青团员 | I28: 522728199708281522 | J28: 大学本科 | L28: 滇西科技师范学院 | M28: 汉语言文学 | N28: 应届 | O28: 都不是 | P28: 非师范类 | Q28: 无 | R28: 无 | S28: 贵州省黔南布依族苗族自治州罗甸县 | T28: 17387698703 | U28: 罗甸县 | V28: 初中 | W28: 语文 | Y28: 70.5 | Z28: 87.61 | AA28: 80.77 | AB28: 是 | AI28: 中央（特岗计划） | AJ28: 第一考场 | AK28: 1
A29: 11 | B29: 姚元青 | C29: ld20200017 | D29: ld2020011 | E29: 女 | F29: 汉族 | G29: 1997-04-06 | H29: 共青团员 | I29: 522728199704065443 | J29: 大学本科 | L29: 贵州财经大学 | M29: 汉语言文学 | N29: 应届 | O29: 都不是 | P29: 非师范类 | Q29: 无 | R29: 无 | S29: 贵州省黔南布依族苗族自治州罗甸县凤亭乡联明村高山五组29号 | T29: 15208546956 | U29: 罗甸县 | V29: 初中 | W29: 语文 | Y29: 70.5 | Z29: 86.73 | AA29: 80.24 | AB29: 是 | AI29: 中央（特岗计划） | AJ29: 第一考场 | AK29: 1
A30: 16 | B30: 潘延敏 | C30: ld20200025 | D30: ld2020016 | E30: 女 | F30: 汉族 | G30: 1997-02-15 | H30: 共青团员 | I30: 522727199702154227 | J30: 大学本科 | L30: 遵义师范学院 | M30: 汉语言文学 | N30: 应届 | O30: 都不是 | P30: 师范类 | Q30: 无 | R30: 无 | S30: 贵州省黔南布依族苗族自治州平塘县 | T30: 18285425832 | U30: 罗甸县 | V30: 初中 | W30: 语文 | Y30: 68.5 | Z30: 86.91 | AA30: 79.55 | AB30: 是 | AI30: 中央（特岗计划） | AJ30: 第一考场 | AK30: 1
A31: 12 | B31: 李思瑶 | C31: ld20200018 | D31: ld2020012 | E31: 女 | F31: 汉族 | G31: 1997-11-16 | H31: 共青团员 | I31: 522731199711161300 | J31: 大学本科 | L31: 贵州师范学院 | M31: 汉语言文学 | N31: 应届 | O31: 都不是 | P31: 师范类 | Q31: 无 | R31: 无 | S31: 贵州省黔南布依族苗族自治州惠水县 | T31: 18375117664 | U31: 罗甸县 | V31: 初中 | W31: 语文 | Y31: 66.0 | Z31: 88.46 | AA31: 79.48 | AB31: 是 | AI31: 中央（特岗计划） | AJ31: 第一考场 | AK31: 1
A32: 13 | B32: 罗先鸦 | C32: ld20200020 | D32: ld2020013 | E32: 女 | F32: 布依族 | G32: 1995-10-22 | H32: 共青团员 | I32: 522728199510223925 | J32: 大学本科 | L32: 黔南师范学院 | M32: 汉语言文学 | N32: 往届 | O32: 都不是 | P32: 师范类 | Q32: 有 | R32: 高级中学教师资格 | S32: 贵州省黔南布依族苗族自治州罗甸县 | T32: 18722862034 | U32: 罗甸县 | V32: 初中 | W32: 语文 | Y32: 69.0 | Z32: 86.26 | AA32: 79.36 | AB32: 是 | AI32: 中央（特岗计划） | AJ32: 第一考场 | AK32: 1
A33: 7 | B33: 柘鸿 | C33: ld20200012 | D33: ld2020007 | E33: 男 | F33: 汉族 | G33: 1998-02-24 | H33: 中共党员 | I33: 50022419980224333X | J33: 大学本科 | L33: 广西外国语学院 | M33: 汉语言文学 | N33: 应届 | O33: 都不是 | P33: 非师范类 | Q33: 无 | R33: 无 | S33: 重庆市铜梁区平滩镇青杠村11组38号 | T33: 18275898953 | U33: 罗甸县 | V33: 初中 | W33: 语文 | Y33: 67.0 | Z33: 87.22 | AA33: 79.13 | AB33: 是 | AI33: 中央（特岗计划） | AJ33: 第一考场 | AK33: 1
A34: 27 | B34: 姚元美 | C34: ld20200044 | D34: ld2020027 | E34: 女 | F34: 汉族 | G34: 1998-02-26 | H34: 共青团员 | I34: 522725199802262425 | J34: 大学本科 | L34: 黔南民族师范学院 | M34: 汉语言文学 | N34: 应届 | O34: 都不是 | P34: 师范类 | Q34: 无 | R34: 无 | S34: 贵州省黔南布依族苗族自治州瓮安县老坟嘴乡红梅村大元子组 | T34: 18708547105 | U34: 罗甸县 | V34: 初中 | W34: 语文 | Y34: 65.0 | Z34: 88.46 | AA34: 79.08 | AB34: 是 | AI34: 中央（特岗计划） | AJ34: 第一考场 | AK34: 1
A35: 19 | B35: 卢龙菊 | C35: ld20200046 | D35: ld2020019 | E35: 女 | F35: 布依族 | G35: 1995-05-25 | H35: 共青团员 | I35: 522731199505250927 | J35: 大学本科 | L35: 黔南民族师范学院 | M35: 汉语言文学 | N35: 应届 | O35: 都不是 | P35: 师范类 | Q35: 无 | R35: 无 | S35: 贵州省黔南布依族苗族自治州惠水县 | T35: 18485399561 | U35: 罗甸县 | V35: 初中 | W35: 语文 | Y35: 67.0 | Z35: 87.12 | AA35: 79.07 | AB35: 是 | AI35: 中央（特岗计划） | AJ35: 第一考场 | AK35: 1
A36: 3 | B36: 陈婷婷 | C36: ld20200004 | D36: ld2020003 | E36: 女 | F36: 汉族 | G36: 1996-10-26 | H36: 共青团员 | I36: 522728199610260045 | J36: 大学本科 | L36: 西北民族大学 | M36: 汉语言文学 | N36: 往届 | O36: 都不是 | P36: 师范类 | Q36: 有 | R36: 高级中学教师资格 | S36: 贵州省黔南布依族苗族自治州罗甸县龙坪镇兴未村上兴组4号 | T36: 19808412334 | U36: 罗甸县 | V36: 初中 | W36: 语文 | Y36: 68.5 | Z36: 85.68 | AA36: 78.81 | AI36: 中央（特岗计划） | AJ36: 第一考场 | AK36: 1
A37: 18 | B37: 武艳丽 | C37: ld20200029 | D37: ld2020018 | E37: 女 | F37: 汉族 | G37: 1995-02-11 | H37: 共青团员 | I37: 412828199502112862 | J37: 大学本科 | L37: 信阳学院 | M37: 汉语言文学 | N37: 应届 | O37: 都不是 | P37: 师范类 | Q37: 无 | R37: 无 | S37: 河南省驻马店市新蔡县韩集镇韩集村委武寨 | T37: 13619800340 | U37: 罗甸县 | V37: 初中 | W37: 语文 | Y37: 68.5 | Z37: 85.04 | AA37: 78.42 | AI37: 中央（特岗计划） | AJ37: 第一考场 | AK37: 1
A38: 22 | B38: 王仕光 | C38: ld20200037 | D38: ld2020022 | E38: 男 | F38: 布依族 | G38: 1997-11-27 | H38: 共青团员 | I38: 522728199711270939 | J38: 大学本科 | L38: 兴义民族师范学院 | M38: 汉语言文学 | N38: 应届 | O38: 都不是 | P38: 师范类 | Q38: 无 | R38: 无 | S38: 贵州省黔南布依族苗族自治州罗甸县 | T38: 18385514164 | U38: 罗甸县 | V38: 初中 | W38: 语文 | Y38: 68.0 | Z38: 84.79 | AA38: 78.07 | AI38: 中央（特岗计划） | AJ38: 第一考场 | AK38: 1
A39: 25 | B39: 李光晶 | C39: ld20200040 | D39: ld2020025 | E39: 女 | F39: 布依族 | G39: 1994-07-21 | H39: 共青团员 | I39: 522635199407211422 | J39: 大学本科 | L39: 黔南民族师范学院 | M39: 汉语言文学 | N39: 往届 | O39: 都不是 | P39: 师范类 | Q39: 有 | R39: 高级中学教师资格 | S39: 贵州省黔东南苗族侗族自治州麻江县 | T39: 18385654879 | U39: 罗甸县 | V39: 初中 | W39: 语文 | Y39: 64.5 | Z39: 86.42 | AA39: 77.65 | AI39: 中央（特岗计划） | AJ39: 第一考场 | AK39: 1
A40: 2 | B40: 马青青 | C40: ld20200003 | D40: ld2020002 | E40: 女 | F40: 布依族 | G40: 1996-11-20 | H40: 共青团员 | I40: 522728199611201848 | J40: 大学本科 | L40: 贵州民族大学 | M40: 汉语言文学 | N40: 应届 | O40: 都不是 | P40: 非师范类 | Q40: 无 | R40: 无 | S40: 贵州省黔南布依族苗族自治州罗甸县 | T40: 18224861764 | U40: 罗甸县 | V40: 初中 | W40: 语文 | Y40: 66.5 | Z40: 85.05 | AA40: 77.63 | AI40: 中央（特岗计划） | AJ40: 第一考场 | AK40: 1
A41: 1 | B41: 阮国娅 | C41: ld20200001 | D41: ld2020001 | E41: 女 | F41: 布依族 | G41: 1998-02-16 | H41: 共青团员 | I41: 522727199802160923 | J41: 大学本科 | L41: 湖北民族大学 | M41: 汉语言文学 | N41: 应届 | O41: 都不是 | P41: 师范类 | Q41: 无 | R41: 无 | S41: 贵州省黔南布依族苗族自治州平塘县 | T41: 15587430513 | U41: 罗甸县 | V41: 初中 | W41: 语文 | Y41: 65.0 | Z41: 85.83 | AA41: 77.50 | AI41: 中央（特岗计划） | AJ41: 第一考场 | AK41: 1
A42: 9 | B42: 罗荣娇 | C42: ld20200015 | D42: ld2020009 | E42: 女 | F42: 汉族 | G42: 1998-07-15 | H42: 共青团员 | I42: 522728199807150042 | J42: 大学本科 | L42: 贵州民族大学 | M42: 汉语言文学 | N42: 应届 | O42: 都不是 | P42: 非师范类 | Q42: 无 | R42: 无 | S42: 贵州省黔南布依族苗族自治州罗甸县龙坪镇都市丽景小区 | T42: 15685401761 | U42: 罗甸县 | V42: 初中 | W42: 语文 | Y42: 66.5 | Z42: 84.63 | AA42: 77.38 | AI42: 中央（特岗计划） | AJ42: 第一考场 | AK42: 1
A43: 23 | B43: 韦薇 | C43: ld20200038 | D43: ld2020023 | E43: 女 | F43: 苗族 | G43: 1997-02-13 | H43: 共青团员 | I43: 522727199702131228 | J43: 大学本科 | L43: 大连民族大学 | M43: 汉语言文学 | N43: 往届 | O43: 都不是 | P43: 非师范类 | Q43: 无 | R43: 无 | S43: 贵州省黔南布依族苗族自治州平塘县 | T43: 15185540217 | U43: 罗甸县 | V43: 初中 | W43: 语文 | Y43: 63.5 | Z43: 86.57 | AA43: 77.34 | AI43: 中央（特岗计划） | AJ43: 第一考场 | AK43: 1
A44: 8 | B44: 宋江莉 | C44: ld20200013 | D44: ld2020008 | E44: 女 | F44: 汉族 | G44: 1991-08-22 | H44: 中共党员 | I44: 522725199108225528 | J44: 大学本科 | L44: 黔南民族师范学院 | M44: 汉语言文学 | N44: 往届 | O44: 都不是 | P44: 师范类 | Q44: 有 | R44: 高级中学教师资格 | S44: 贵州省黔南布依族苗族自治州瓮安县建中镇果水村 | T44: 13638540806 | U44: 罗甸县 | V44: 初中 | W44: 语文 | Y44: 66.5 | Z44: 84.31 | AA44: 77.19 | AI44: 中央（特岗计划） | AJ44: 第一考场 | AK44: 1
A45: 10 | B45: 李辞源 | C45: ld20200016 | D45: ld2020010 | E45: 男 | F45: 布依族 | G45: 1996-03-04 | H45: 共青团员 | I45: 522727199603044233 | J45: 大学本科 | L45: 黔南民族师范学院 | M45: 汉语言文学 | N45: 往届 | O45: 都不是 | P45: 师范类 | Q45: 有 | R45: 高级中学教师资格 | S45: 贵州省黔南布依族苗族自治州平塘县克度镇白纸厂 | T45: 18224810540 | U45: 罗甸县 | V45: 初中 | W45: 语文 | Y45: 62.5 | Z45: 86.56 | AA45: 76.94 | AI45: 中央（特岗计划） | AJ45: 第一考场 | AK45: 1
A46: 4 | B46: 陈娟娟 | C46: ld20200005 | D46: ld2020004 | E46: 女 | F46: 苗族 | G46: 1996-06-28 | H46: 共青团员 | I46: 522728199606280043 | J46: 大学本科 | L46: 中南民族大学 | M46: 汉语言文学 | N46: 往届 | O46: 都不是 | P46: 非师范类 | Q46: 有 | R46: 高级中学教师资格 | S46: 贵州省黔南布依族苗族自治州罗甸县 | T46: 15121353814 | U46: 罗甸县 | V46: 初中 | W46: 语文 | Y46: 62.5 | Z46: 85.86 | AA46: 76.52 | AI46: 中央（特岗计划） | AJ46: 第一考场 | AK46: 1
A47: 15 | B47: 陆治霞 | C47: ld20200023 | D47: ld2020015 | E47: 女 | F47: 布依族 | G47: 1995-09-15 | H47: 共青团员 | I47: 522726199509150084 | J47: 大学本科 | L47: 贵州民族大学 | M47: 汉语言文学 | N47: 应届 | O47: 都不是 | P47: 非师范类 | Q47: 无 | R47: 无 | S47: 贵州省黔南布依族苗族自治州独山县上司镇盖寨村三组 | T47: 13195105692 | U47: 罗甸县 | V47: 初中 | W47: 语文 | Y47: 63.5 | Z47: 84.45 | AA47: 76.07 | AI47: 中央（特岗计划） | AJ47: 第一考场 | AK47: 1
A48: 5 | B48: 王元梅 | C48: ld20200009 | D48: ld2020005 | E48: 女 | F48: 布依族 | G48: 1998-12-31 | H48: 共青团员 | I48: 522728199812319826 | J48: 大学本科 | L48: 贵州民族大学 | M48: 汉语言文学 | N48: 应届 | O48: 都不是 | P48: 非师范类 | Q48: 无 | R48: 无 | S48: 贵州省黔南布依族苗族自治州罗甸县 | T48: 13195115736 | U48: 罗甸县 | V48: 初中 | W48: 语文 | Y48: 65.0 | Z48: 82.99 | AA48: 75.79 | AI48: 中央（特岗计划） | AJ48: 第一考场 | AK48: 1
A49: 14 | B49: 陈韦艳 | C49: ld20200021 | D49: ld2020014 | E49: 女 | F49: 布依族 | G49: 1996-11-16 | H49: 共青团员 | I49: 522731199611168724 | J49: 大学本科 | L49: 黔南民族师范学院 | M49: 汉语言文学 | N49: 应届 | O49: 都不是 | P49: 师范类 | Q49: 无 | R49: 无 | S49: 贵州省黔南布依族苗族自治州惠水县 | T49: 14785862217 | U49: 罗甸县 | V49: 初中 | W49: 语文 | Y49: 66.0 | Z49: 81.41 | AA49: 75.25 | AI49: 中央（特岗计划） | AJ49: 第一考场 | AK49: 1
A50: 20 | B50: 程怡 | C50: ld20200032 | D50: ld2020020 | E50: 女 | F50: 苗族 | G50: 1998-05-03 | H50: 群众 | I50: 522327199805030065 | J50: 大学本科 | L50: 贵州大学 | M50: 汉语言文学 | N50: 应届 | O50: 都不是 | P50: 非师范类 | Q50: 无 | R50: 无 | S50: 贵州省黔西南布依族苗族自治州册亨县环城路48号 | T50: 18984009979 | U50: 罗甸县 | V50: 初中 | W50: 语文 | Y50: 63.0 | Z50: 71.25 | AA50: 67.95 | AI50: 中央（特岗计划） | AJ50: 第一考场 | AK50: 1
A51: 24 | B51: 吴荣秋 | C51: ld20200039 | D51: ld2020024 | E51: 女 | F51: 水族 | G51: 1996-10-27 | H51: 共青团员 | I51: 522722199610270325 | J51: 大学本科 | L51: 兴义民族师范学院 | M51: 汉语言文学 | N51: 应届 | O51: 都不是 | P51: 师范类 | Q51: 无 | R51: 无 | S51: 贵州省黔南布依族苗族自治州荔波县 | T51: 18286492697 | U51: 罗甸县 | V51: 初中 | W51: 语文 | Y51: 69.5 | Z51: 缺考 | AA51: =Y51*0.4 -> 27.80 | AI51: 中央（特岗计划） | AJ51: 第一考场 | AK51: 1
A52: 28 | B52: 谢娟 | C52: ld20200045 | D52: ld2020028 | E52: 女 | F52: 布依族 | G52: 1992-08-10 | H52: 群众 | I52: 522731199208109206 | J52: 大学本科 | L52: 兴义民族师范学院 | M52: 汉语言文学（文秘方向） | N52: 往届 | O52: 都不是 | P52: 非师范类 | Q52: 有 | R52: 初级中学教师资格 | S52: 贵州省黔南布依族苗族自治州惠水县王佑镇平贡村 | T52: 15117387277 | U52: 罗甸县 | V52: 初中 | W52: 语文 | Y52: 61.5 | Z52: 缺考 | AA52: =Y52*0.4 -> 24.60 | AI52: 中央（特岗计划） | AJ52: 第一考场 | AK52: 1
A53: 298 | B53: 罗福火 | C53: ld20200416 | D53: ld2020298 | E53: 女 | F53: 布依族 | G53: 1996-10-15 | H53: 共青团员 | I53: 522326199610151063 | J53: 大学本科 | L53: 贵州大学 | M53: 英语 | N53: 往届 | O53: 都不是 | P53: 非师范类 | Q53: 有 | R53: 高级中学教师资格 | S53: 贵州省黔西南布依族苗族自治州望谟县乐旺镇油啥村二组29号 | T53: 18275165364 | U53: 罗甸县 | V53: 初中 | W53: 英语 | Y53: 87.5 | Z53: 85.70 | AA53: =Y53*0.4+Z53*0.6 -> 86.42 | AB53: 是 | AI53: 中央（特岗计划） | AJ53: 第十考场 | AK53: 1
A54: 294 | B54: 莫树凤 | C54: ld20200412 | D54: ld2020294 | E54: 女 | F54: 布依族 | G54: 1992-12-25 | H54: 群众 | I54: 522726199212254480 | J54: 大学本科 | L54: 遵义医学院珠海校区 | M54: 英语 | N54: 往届 | O54: 都不是 | P54: 非师范类 | Q54: 有 | R54: 高级中学教师资格 | S54: 贵州省黔南布依族苗族自治州独山县 | T54: 13648517693 | U54: 罗甸县 | V54: 初中 | W54: 英语 | Y54: 78.5 | Z54: 88.83 | AA54: 84.70 | AB54: 是 | AI54: 中央（特岗计划） | AJ54: 第十考场 | AK54: 1
A55: 309 | B55: 黎荣姣 | C55: ld20200427 | D55: ld2020309 | E55: 女 | F55: 毛南族 | G55: 1998-02-08 | H55: 共青团员 | I55: 522726199802080943 | J55: 大学本科 | L55: 遵义医科大学珠海校区 | M55: 英语 | N55: 应届 | O55: 都不是 | P55: 非师范类 | Q55: 无 | R55: 无 | S55: 贵州省独山县羊凤乡朵罗村田寨组 | T55: 13138136207 | U55: 罗甸县 | V55: 初中 | W55: 英语 | Y55: 82.5 | Z55: 85.87 | AA55: 84.52 | AB55: 是 | AI55: 中央（特岗计划） | AJ55: 第十考场 | AK55: 1
A56: 306 | B56: 罗开分 | C56: ld20200424 | D56: ld2020306 | E56: 女 | F56: 汉族 | G56: 1997-03-02 | H56: 中共党员 | I56: 522731199703028323 | J56: 大学本科 | L56: 贵州师范学院 | M56: 英语 | N56: 往届 | O56: 都不是 | P56: 师范类 | Q56: 有 | R56: 高级中学教师资格 | S56: 贵州省黔南布依族苗族自治州惠水县羡塘镇 | T56: 15285008025 | U56: 罗甸县 | V56: 初中 | W56: 英语 | Y56: 80.5 | Z56: 86.77 | AA56: 84.26 | AB56: 是 | AI56: 中央（特岗计划） | AJ56: 第十考场 | AK56: 1
A57: 303 | B57: 刘春燕 | C57: ld20200421 | D57: ld2020303 | E57: 女 | F57: 汉族 | G57: 1996-08-17 | H57: 共青团员 | I57: 522725199608175248 | J57: 大学本科 | L57: 贵州师范学院 | M57: 旅游英语 | N57: 应届 | O57: 都不是 | P57: 师范类 | Q57: 无 | R57: 无 | S57: 贵州省黔南布依族苗族自治州瓮安县 | T57: 18375174731 | U57: 罗甸县 | V57: 初中 | W57: 英语 | Y57: 78.5 | Z57: 87.63 | AA57: 83.98 | AB57: 是 | AI57: 中央（特岗计划） | AJ57: 第十考场 | AK57: 1
A58: 292 | B58: 卢菊珍 | C58: ld20200410 | D58: ld2020292 | E58: 女 | F58: 汉族 | G58: 1994-06-24 | H58: 共青团员 | I58: 522731199406249023 | J58: 大学本科 | L58: 贵州师范学院 | M58: 英语 | N58: 往届 | O58: 都不是 | P58: 师范类 | Q58: 有 | R58: 高级中学教师资格 | S58: 贵州省黔南布依族苗族自治州惠水县 | T58: 15722114760 | U58: 罗甸县 | V58: 初中 | W58: 英语 | Y58: 78.5 | Z58: 87.27 | AA58: 83.76 | AB58: 是 | AI58: 中央（特岗计划） | AJ58: 第九考场 | AK58: 1
A59: 299 | B59: 李小会 | C59: ld20200417 | D59: ld2020299 | E59: 女 | F59: 汉族 | G59: 1992-11-16 | H59: 共青团员 | I59: 522731199211161283 | J59: 硕士研究生 | L59: 黔南民族师范学院 | M59: 学科教学（英语） | N59: 往届 | O59: 都不是 | P59: 师范类 | Q59: 有 | R59: 高级中学教师资格 | S59: 贵州省黔南布依族苗族自治州惠水县 | T59: 13628546415 | U59: 罗甸县 | V59: 初中 | W59: 英语 | Y59: 78.5 | Z59: 87.10 | AA59: 83.66 | AB59: 是 | AI59: 中央（特岗计划） | AJ59: 第十考场 | AK59: 1
A60: 302 | B60: 吴思钰 | C60: ld20200420 | D60: ld2020302 | E60: 女 | F60: 布依族 | G60: 1997-08-20 | H60: 共青团员 | I60: 522728199708200024 | J60: 大学本科 | L60: 燕京理工学院 | M60: 英语 | N60: 往届 | O60: 都不是 | P60: 非师范类 | Q60: 无 | R60: 无 | S60: 贵州省黔南布依族苗族自治州罗甸县高平实验学校旁安置房3栋2单元 | T60: 17685384396 | U60: 罗甸县 | V60: 初中 | W60: 英语 | Y60: 75.0 | Z60: 89.23 | AA60: 83.54 | AB60: 是 | AI60: 中央（特岗计划） | AJ60: 第十考场 | AK60: 1
A61: 289 | B61: 蒙娟 | C61: ld20200407 | D61: ld2020289 | E61: 女 | F61: 布依族 | G61: 1998-11-10 | H61: 共青团员 | I61: 522326199811101628 | J61: 大学本科 | L61: 贵州师范大学 | M61: 英语 | N61: 应届 | O61: 都不是 | P61: 师范类 | Q61: 无 | R61: 无 | S61: 贵州省黔西南布依族苗族自治州望谟县 | T61: 18748888125 | U61: 罗甸县 | V61: 初中 | W61: 英语 | Y61: 81.5 | Z61: 84.20 | AA61: 83.12 | AB61: 是 | AI61: 中央（特岗计划） | AJ61: 第九考场 | AK61: 1
A62: 288 | B62: 帅祥鲜 | C62: ld20200406 | D62: ld2020288 | E62: 女 | F62: 汉族 | G62: 1998-02-03 | H62: 中共党员 | I62: 522727199802033924 | J62: 大学本科 | L62: 贵州民族大学 | M62: 英语 | N62: 应届 | O62: 都不是 | P62: 非师范类 | Q62: 无 | R62: 无 | S62: 贵州省黔南布依族苗族自治州平塘县克度镇同兴村 | T62: 13158078315 | U62: 罗甸县 | V62: 初中 | W62: 英语 | Y62: 81.0 | Z62: 84.50 | AA62: 83.10 | AB62: 是 | AI62: 中央（特岗计划） | AJ62: 第九考场 | AK62: 1
A63: 301 | B63: 涂玉琳 | C63: ld20200419 | D63: ld2020301 | E63: 女 | F63: 汉族 | G63: 1997-11-10 | H63: 共青团员 | I63: 522727199711102429 | J63: 大学本科 | L63: 贵州师范大学 | M63: 英语 | N63: 应届 | O63: 都不是 | P63: 师范类 | Q63: 无 | R63: 无 | S63: 贵州省黔南布依族苗族自治州平塘县甲茶镇保上村老寨组9号 | T63: 18708546074 | U63: 罗甸县 | V63: 初中 | W63: 英语 | Y63: 77.5 | Z63: 86.07 | AA63: 82.64 | AB63: 是 | AI63: 中央（特岗计划） | AJ63: 第十考场 | AK63: 1
A64: 296 | B64: 付静扬 | C64: ld20200414 | D64: ld2020296 | E64: 女 | F64: 布依族 | G64: 1998-04-29 | H64: 共青团员 | I64: 522728199804296388 | J64: 大学本科 | L64: 黔南民族师范学院 | M64: 英语 | N64: 应届 | O64: 都不是 | P64: 师范类 | Q64: 无 | R64: 无 | S64: 贵州省黔南布依族苗族自治州罗甸县 | T64: 18375065044 | U64: 罗甸县 | V64: 初中 | W64: 英语 | Y64: 74.0 | Z64: 88.00 | AA64: 82.40 | AB64: 是 | AI64: 中央（特岗计划） | AJ64: 第十考场 | AK64: 1
A65: 308 | B65: 郑煜 | C65: ld20200426 | D65: ld2020308 | E65: 女 | F65: 汉族 | G65: 1997-12-14 | H65: 共青团员 | I65: 522725199712144046 | J65: 大学本科 | L65: 遵义医科大学珠海校区 | M65: 英语 | N65: 应届 | O65: 都不是 | P65: 非师范类 | Q65: 无 | R65: 无 | S65: 贵州省黔南布依族苗族自治州瓮安县银盏镇下寨组 | T65: 13318947516 | U65: 罗甸县 | V65: 初中 | W65: 英语 | Y65: 73.5 | Z65: 86.07 | AA65: 81.04 | AB65: 是 | AI65: 中央（特岗计划） | AJ65: 第十考场 | AK65: 1
A66: 304 | B66: 岑辉姣 | C66: ld20200422 | D66: ld2020304 | E66: 女 | F66: 布依族 | G66: 1997-12-23 | H66: 共青团员 | I66: 522728199712235123 | J66: 大学本科 | L66: 辽宁工程技术大学 | M66: 商务英语 | N66: 应届 | O66: 都不是 | P66: 非师范类 | Q66: 无 | R66: 无 | S66: 贵州省黔南布依族苗族自治州罗甸县安邦华城1号楼903 | T66: 18375047570 | U66: 罗甸县 | V66: 初中 | W66: 英语 | Y66: 75.5 | Z66: 84.13 | AA66: 80.68 | AB66: 是 | AI66: 中央（特岗计划） | AJ66: 第十考场 | AK66: 1
A67: 305 | B67: 熊谣 | C67: ld20200423 | D67: ld2020305 | E67: 女 | F67: 汉族 | G67: 1996-12-29 | H67: 共青团员 | I67: 522725199612290628 | J67: 大学本科 | L67: 天津商业大学宝德学院 | M67: 英语 | N67: 应届 | O67: 都不是 | P67: 非师范类 | Q67: 无 | R67: 无 | S67: 贵州省瓮安县瓮水办事处长征路53号楼1号 | T67: 18188041395 | U67: 罗甸县 | V67: 初中 | W67: 英语 | Y67: 72.5 | Z67: 85.40 | AA67: 80.24 | AB67: 是 | AI67: 中央（特岗计划） | AJ67: 第十考场 | AK67: 1
A68: 297 | B68: 王菊 | C68: ld20200415 | D68: ld2020297 | E68: 女 | F68: 布依族 | G68: 1995-06-20 | H68: 共青团员 | I68: 522326199506200080 | J68: 大学本科 | L68: 遵义医学院 | M68: 英语 | N68: 往届 | O68: 都不是 | P68: 非师范类 | Q68: 无 | R68: 无 | S68: 贵州省黔西南布依族苗族自治州望谟县 | T68: 13885907712 | U68: 罗甸县 | V68: 初中 | W68: 英语 | Y68: 68.5 | Z68: 87.43 | AA68: 79.86 | AI68: 中央（特岗计划） | AJ68: 第十考场 | AK68: 1
A69: 287 | B69: 陈续琴 | C69: ld20200405 | D69: ld2020287 | E69: 女 | F69: 汉族 | G69: 1992-10-30 | H69: 共青团员 | I69: 522725199210303529 | J69: 大学本科 | L69: 兴义民族师范学院 | M69: 英语 | N69: 往届 | O69: 都不是 | P69: 师范类 | Q69: 有 | R69: 高级中学教师资格 | S69: 贵州省黔南布依族苗族自治州瓮安县 | T69: 18485440371 | U69: 罗甸县 | V69: 初中 | W69: 英语 | Y69: 69.0 | Z69: 87.03 | AA69: 79.82 | AI69: 中央（特岗计划） | AJ69: 第九考场 | AK69: 1
A70: 285 | B70: 邹锡缘 | C70: ld20200429 | D70: ld2020285 | E70: 女 | F70: 汉族 | G70: 1996-11-24 | H70: 共青团员 | I70: 522727199611242125 | J70: 大学本科 | L70: 黔南民族师范学院 | M70: 商务英语 | N70: 应届 | O70: 都不是 | P70: 非师范类 | Q70: 无 | R70: 无 | S70: 贵州省黔南布依族苗族自治州平塘县 | T70: 18798224620 | U70: 罗甸县 | V70: 初中 | W70: 英语 | Y70: 70.0 | Z70: 86.03 | AA70: 79.62 | AI70: 中央（特岗计划） | AJ70: 第九考场 | AK70: 1
A71: 300 | B71: 宋培芳 | C71: ld20200418 | D71: ld2020300 | E71: 女 | F71: 布依族 | G71: 1997-06-19 | H71: 共青团员 | I71: 522701199706194468 | J71: 大学本科 | L71: 贵州省都匀市 | M71: 英语 | N71: 应届 | O71: 都不是 | P71: 师范类 | Q71: 无 | R71: 无 | S71: 贵州省黔南布依族苗族自治州都匀市 | T71: 18385524879 | U71: 罗甸县 | V71: 初中 | W71: 英语 | Y71: 71.0 | Z71: 84.07 | AA71: 78.84 | AI71: 中央（特岗计划） | AJ71: 第十考场 | AK71: 1
A72: 295 | B72: 陈雨 | C72: ld20200413 | D72: ld2020295 | E72: 女 | F72: 汉族 | G72: 1998-06-06 | H72: 共青团员 | I72: 52272819980606242X | J72: 大学本科 | L72: 凯里学院 | M72: 英语 | N72: 应届 | O72: 都不是 | P72: 师范类 | Q72: 无 | R72: 无 | S72: 贵州省黔南布依族苗族自治州罗甸县 | T72: 18786397064 | U72: 罗甸县 | V72: 初中 | W72: 英语 | Y72: 61.0 | Z72: 83.67 | AA72: 74.60 | AI72: 中央（特岗计划） | AJ72: 第十考场 | AK72: 1
A73: 293 | B73: 罗如凤 | C73: ld20200411 | D73: ld2020293 | E73: 女 | F73: 汉族 | G73: 1995-10-03 | H73: 共青团员 | I73: 52272719951003452X | J73: 大学本科 | L73: 贵州医科大学 | M73: 英语 | N73: 往届 | O73: 都不是 | P73: 非师范类 | Q73: 有 | R73: 高级中学教师资格 | S73: 贵州省黔南布依族苗族自治州平塘县 | T73: 15508515830 | U73: 罗甸县 | V73: 初中 | W73: 英语 | Y73: 60.5 | Z73: 80.53 | AA73: 72.52 | AI73: 中央（特岗计划） | AJ73: 第十考场 | AK73: 1
A74: 291 | B74: 覃金玉 | C74: ld20200409 | D74: ld2020291 | E74: 女 | F74: 布依族 | G74: 1998-05-27 | H74: 共青团员 | I74: 52272819980527122X | J74: 大学本科 | L74: 贵州师范大学求是学院 | M74: 英语 | N74: 应届 | O74: 都不是 | P74: 师范类 | Q74: 无 | R74: 无 | S74: 贵州省黔南布依族苗族自治州罗甸县 | T74: 18722874791 | U74: 罗甸县 | V74: 初中 | W74: 英语 | Y74: 78.0 | Z74: 缺考 | AA74: =Y74*0.4 -> 31.20 | AI74: 中央（特岗计划） | AJ74: 第九考场 | AK74: 1
A75: 286 | B75: 孔令星 | C75: ld20200404 | D75: ld2020286 | E75: 女 | F75: 布依族 | G75: 1998-09-21 | H75: 共青团员 | I75: 522727199809211527 | J75: 大学本科 | L75: 贵州财经大学商务学院 | M75: 商务英语 | N75: 应届 | O75: 都不是 | P75: 非师范类 | Q75: 无 | R75: 无 | S75: 贵州省黔南布依族苗族自治州平塘县 | T75: 15692700602 | U75: 罗甸县 | V75: 初中 | W75: 英语 | Y75: 73.0 | Z75: 缺考 | AA75: =Y75*0.4 -> 29.20 | AI75: 中央（特岗计划） | AJ75: 第九考场 | AK75: 1
A76: 290 | B76: 廖加美 | C76: ld20200408 | D76: ld2020290 | E76: 女 | F76: 苗族 | G76: 1993-11-05 | H76: 共青团员 | I76: 522701199311052844 | J76: 大学本科 | L76: 贵州师范大学求是学院 | M76: 英语 | N76: 往届 | O76: 都不是 | P76: 师范类 | Q76: 有 | R76: 高级中学教师资格 | S76: 贵州省黔南布依族苗族自治州都匀市 | T76: 18985784297 | U76: 罗甸县 | V76: 初中 | W76: 英语 | Y76: 69.5 | Z76: 缺考 | AA76: =Y76*0.4 -> 27.80 | AI76: 中央（特岗计划） | AJ76: 第九考场 | AK76: 1
A77: 307 | B77: 罗绍军 | C77: ld20200425 | D77: ld2020307 | E77: 女 | F77: 布依族 | G77: 1997-08-01 | H77: 共青团员 | I77: 52272819970801124X | J77: 大学本科 | L77: 贵州师范学院 | M77: 英语（旅游英语） | N77: 往届 | O77: 都不是 | P77: 师范类 | Q77: 无 | R77: 无 | S77: 贵州省罗甸县边阳镇边中路32号附5号 | T77: 15180867038 | U77: 罗甸县 | V77: 初中 | W77: 英语 | Y77: 67.0 | Z77: 0.00 | AA77: =Y77*0.4+Z77*0.6 -> 26.80 | AI77: 中央（特岗计划） | AJ77: 第十考场 | AK77: 1
A78: 310 | B78: 黄倩 | C78: ld20200428 | D78: ld2020310 | E78: 女 | F78: 布依族 | G78: 1998-07-11 | H78: 共青团员 | I78: 522728199807110024 | J78: 大学本科 | L78: 龙岩学院 | M78: 英语 | N78: 应届 | O78: 都不是 | P78: 非师范类 | Q78: 无 | R78: 无 | S78: 贵州省黔南布依族苗族自治州罗甸县龙坪镇马草村五组42号 | T78: 17759719794 | U78: 罗甸县 | V78: 初中 | W78: 英语 | Y78: 61.0 | Z78: 缺考 | AA78: =Y78*0.4 -> 24.40 | AI78: 中央（特岗计划） | AJ78: 第十考场 | AK78: 1
A79: 456 | B79: 王爽 | C79: ld20200657 | D79: ld2020456 | E79: 男 | F79: 仡佬族 | G79: 1996-08-29 | H79: 共青团员 | I79: 522125199608290059 | J79: 大学本科 | L79: 邯郸学院 | M79: 应用心理学 | N79: 往届 | O79: 都不是 | P79: 师范类 | Q79: 无 | R79: 无 | S79: 贵州省遵义市道真仡佬族苗族自治县 | T79: 15733077201 | U79: 罗甸县 | V79: 初中 | W79: 心理健康 | Y79: 66.3 | Z79: 86.43 | AA79: =Y79*0.4+Z79*0.6 -> 78.38 | AB79: 是 | AI79: 中央（特岗计划） | AJ79: 第十五考场 | AK79: 1
A80: 457 | B80: 罗文艳 | C80: ld20200659 | D80: ld2020457 | E80: 女 | F80: 布依族 | G80: 1995-04-11 | H80: 共青团员 | I80: 522726199504111967 | J80: 大学本科 | L80: 贵阳学院 | M80: 应用心理学 | N80: 应届 | O80: 都不是 | P80: 师范类 | Q80: 无 | R80: 无 | S80: 贵州省独山县基长镇开罗村麻庸组169号 | T80: 13618544270 | U80: 罗甸县 | V80: 初中 | W80: 心理健康 | Y80: 64.5 | Z80: 87.10 | AA80: 78.06 | AB80: 是 | AI80: 中央（特岗计划） | AJ80: 第十五考场 | AK80: 1
A81: 455 | B81: 罗飞 | C81: ld20200662 | D81: ld2020455 | E81: 女 | F81: 布依族 | G81: 1997-04-03 | H81: 共青团员 | I81: 522731199704037045 | J81: 大学本科 | L81: 遵义师范学院 | M81: 应用心理学 | N81: 应届 | O81: 都不是 | P81: 师范类 | Q81: 无 | R81: 无 | S81: 贵州省黔南布依族苗族自治州罗甸县 | T81: 13765767443 | U81: 罗甸县 | V81: 初中 | W81: 心理健康 | Y81: 62.3 | Z81: 86.42 | AA81: 76.77 | AB81: 是 | AI81: 中央（特岗计划） | AJ81: 第十五考场 | AK81: 1
A82: 458 | B82: 何草梅 | C82: ld20200660 | D82: ld2020458 | E82: 女 | F82: 汉族 | G82: 1998-06-05 | H82: 共青团员 | I82: 520202199806053627 | J82: 大学本科 | L82: 兴义民族师范学院 | M82: 应用心理学 | N82: 应届 | O82: 都不是 | P82: 师范类 | Q82: 无 | R82: 无 | S82: 贵州省六盘水市盘州市盘关镇长山村6组4号 | T82: 18216765907 | U82: 罗甸县 | V82: 初中 | W82: 心理健康 | Y82: 51.5 | Z82: 85.77 | AA82: 72.06 | AI82: 中央（特岗计划） | AJ82: 第十五考场 | AK82: 1
A83: 411 | B83: 何则莹 | C83: ld20200559 | D83: ld2020411 | E83: 女 | F83: 苗族 | G83: 1994-08-07 | H83: 共青团员 | I83: 522725199408074346 | J83: 大学本科 | L83: 贵州师范学院 | M83: 物理学 | N83: 往届 | O83: 都不是 | P83: 师范类 | Q83: 有 | R83: 初级中学教师资格 | S83: 贵州省黔南布依族苗族自治州瓮安县 | T83: 18785031951 | U83: 罗甸县 | V83: 初中 | W83: 物理 | Y83: 65.5 | Z83: 87.23 | AA83: 78.54 | AB83: 是 | AI83: 中央（特岗计划） | AJ83: 第十三考场 | AK83: 1
A84: 414 | B84: 罗万海 | C84: ld20200542 | D84: ld2020414 | E84: 男 | F84: 布依族 | G84: 1998-09-18 | H84: 共青团员 | I84: 522326199809181657 | J84: 大学本科 | L84: 贵州师范学院 | M84: 物理学 | N84: 应届 | O84: 都不是 | P84: 师范类 | Q84: 无 | R84: 无 | S84: 贵州省黔西南布依族苗族自治州望谟县 | T84: 13124674430 | U84: 罗甸县 | V84: 初中 | W84: 物理 | Y84: 63.5 | Z84: 85.47 | AA84: 76.68 | AB84: 是 | AI84: 中央（特岗计划） | AJ84: 第十三考场 | AK84: 1
A85: 415 | B85: 陈妃 | C85: ld20200543 | D85: ld2020415 | E85: 女 | F85: 土家族 | G85: 1996-08-14 | H85: 中共党员 | I85: 522226199608140423 | J85: 大学本科 | L85: 贵州师范学院 | M85: 物理学 | N85: 应届 | O85: 都不是 | P85: 师范类 | Q85: 无 | R85: 无 | S85: 贵州省铜仁市印江土家族苗族自治县 | T85: 13124619894 | U85: 罗甸县 | V85: 初中 | W85: 物理 | Y85: 57.5 | Z85: 88.37 | AA85: 76.02 | AB85: 是 | AI85: 中央（特岗计划） | AJ85: 第十三考场 | AK85: 1
A86: 416 | B86: 王正旺 | C86: ld20200544 | D86: ld2020416 | E86: 男 | F86: 汉族 | G86: 1992-12-11 | H86: 群众 | I86: 522732199212114215 | J86: 大学本科 | L86: 贵州师范大学 | M86: 物理学（通用技术方向） | N86: 往届 | O86: 都不是 | P86: 师范类 | Q86: 有 | R86: 高级中学教师资格 | S86: 贵州省黔南布依族苗族自治州三都水族自治县 | T86: 15085966030 | U86: 罗甸县 | V86: 初中 | W86: 物理 | Y86: 57.5 | Z86: 87.47 | AA86: 75.48 | AB86: 是 | AI86: 中央（特岗计划） | AJ86: 第十三考场 | AK86: 1
A87: 422 | B87: 韦春兰 | C87: ld20200557 | D87: ld2020422 | E87: 女 | F87: 水族 | G87: 1996-01-17 | H87: 共青团员 | I87: 522732199601176962 | J87: 大学本科 | L87: 贵州师范大学 | M87: 物理学 | N87: 往届 | O87: 都不是 | P87: 师范类 | Q87: 有 | R87: 高级中学教师资格 | S87: 贵州省黔南布依族苗族自治州三都水族自治县周覃镇群力村 | T87: 15285343867 | U87: 罗甸县 | V87: 初中 | W87: 物理 | Y87: 58.0 | Z87: 83.57 | AA87: 73.34 | AB87: 是 | AI87: 中央（特岗计划） | AJ87: 第十四考场 | AK87: 1
A88: 420 | B88: 毛与贤 | C88: ld20200555 | D88: ld2020420 | E88: 男 | F88: 布依族 | G88: 1996-07-11 | H88: 共青团员 | I88: 522731199607112197 | J88: 大学本科 | L88: 黔南民族师范学院 | M88: 物理学 | N88: 应届 | O88: 都不是 | P88: 师范类 | Q88: 无 | R88: 无 | S88: 贵州省黔南布依族苗族自治州惠水县好花红镇新门村上苑组24号 | T88: 18385480497 | U88: 罗甸县 | V88: 初中 | W88: 物理 | Y88: 52.3 | Z88: 85.57 | AA88: 72.26 | AI88: 中央（特岗计划） | AJ88: 第十三考场 | AK88: 1
A89: 417 | B89: 彭婷 | C89: ld20200545 | D89: ld2020417 | E89: 女 | F89: 布依族 | G89: 1995-10-20 | H89: 共青团员 | I89: 520424199510200068 | J89: 大学本科 | L89: 兴义民族师范学院 | M89: 物理学 | N89: 往届 | O89: 都不是 | P89: 师范类 | Q89: 有 | R89: 初级中学教师资格 | S89: 贵州省安顺市关岭布依族苗族自治县 | T89: 15186551229 | U89: 罗甸县 | V89: 初中 | W89: 物理 | Y89: 47.0 | Z89: 87.33 | AA89: 71.20 | AI89: 中央（特岗计划） | AJ89: 第十三考场 | AK89: 1
A90: 419 | B90: 潘良屯 | C90: ld20200550 | D90: ld2020419 | E90: 男 | F90: 水族 | G90: 1996-10-06 | H90: 共青团员 | I90: 522732199610061411 | J90: 大学本科 | L90: 黔南民族师范学院 | M90: 物理学 | N90: 应届 | O90: 都不是 | P90: 师范类 | Q90: 无 | R90: 无 | S90: 贵州省黔南布依族苗族自治州三都水族自治县 | T90: 18744796273 | U90: 罗甸县 | V90: 初中 | W90: 物理 | Y90: 48.5 | Z90: 86.30 | AA90: 71.18 | AI90: 中央（特岗计划） | AJ90: 第十三考场 | AK90: 1
A91: 413 | B91: 岑宝香 | C91: ld20200541 | D91: ld2020413 | E91: 女 | F91: 布依族 | G91: 1994-07-08 | H91: 共青团员 | I91: 522326199407080028 | J91: 大学本科 | L91: 贵州师范学院 | M91: 物理学 | N91: 往届 | O91: 都不是 | P91: 师范类 | Q91: 有 | R91: 高级中学教师资格 | S91: 贵州省黔西南布依族苗族自治州望谟县王母街道平绕村东岩组 | T91: 18275041337 | U91: 罗甸县 | V91: 初中 | W91: 物理 | Y91: 49.0 | Z91: 85.80 | AA91: 71.08 | AI91: 中央（特岗计划） | AJ91: 第十三考场 | AK91: 1
A92: 421 | B92: 潘开艳 | C92: ld20200556 | D92: ld2020421 | E92: 女 | F92: 布依族 | G92: 1993-10-13 | H92: 中共党员 | I92: 522724199310131828 | J92: 大学本科 | L92: 黔南民族师范学院 | M92: 物理学 | N92: 往届 | O92: 都不是 | P92: 师范类 | Q92: 有 | R92: 高级中学教师资格 | S92: 贵州省黔南布依族苗族自治州福泉市 | T92: 18708544329 | U92: 罗甸县 | V92: 初中 | W92: 物理 | Y92: 45.5 | Z92: 84.80 | AA92: 69.08 | AI92: 中央（特岗计划） | AJ92: 第十四考场 | AK92: 1
A93: 418 | B93: 梁丈 | C93: ld20200549 | D93: ld2020418 | E93: 男 | F93: 布依族 | G93: 1996-12-06 | H93: 共青团员 | I93: 522326199612062435 | J93: 大学本科 | L93: 凯里学院 | M93: 物理学 | N93: 应届 | O93: 都不是 | P93: 师范类 | Q93: 无 | R93: 无 | S93: 贵州省黔西南布依族苗族自治州望谟县 | T93: 15285491345 | U93: 罗甸县 | V93: 初中 | W93: 物理 | Y93: 43.5 | Z93: 84.13 | AA93: 67.88 | AI93: 中央（特岗计划） | AJ93: 第十三考场 | AK93: 1
A94: 412 | B94: 杨明歉 | C94: ld20200540 | D94: ld2020412 | E94: 女 | F94: 汉族 | G94: 1996-11-01 | H94: 共青团员 | I94: 522326199611012065 | J94: 大学本科 | L94: 贵州师范学院 | M94: 物理学(计算物理) | N94: 应届 | O94: 都不是 | P94: 师范类 | Q94: 无 | R94: 无 | S94: 贵州省黔西南布依族苗族自治州望谟县 | T94: 13124619438 | U94: 罗甸县 | V94: 初中 | W94: 物理 | Y94: 41.5 | Z94: 83.20 | AA94: 66.52 | AI94: 中央（特岗计划） | AJ94: 第十三考场 | AK94: 1
A95: 173 | B95: 贺家勇 | C95: ld20200282 | D95: ld2020173 | E95: 男 | F95: 汉族 | G95: 1996-08-08 | H95: 群众 | I95: 522725199608087117 | J95: 大学本科 | L95: 黔南民族师范学院 | M95: 数学与应用数学 | N95: 往届 | O95: 都不是 | P95: 师范类 | Q95: 有 | R95: 高级中学教师资格 | S95: 贵州省黔南布依族苗族自治州瓮安县珠藏镇 | T95: 13648545296 | U95: 罗甸县 | V95: 初中 | W95: 数学 | Y95: 83.5 | Z95: 84.37 | AA95: 84.02 | AB95: 是 | AI95: 中央（特岗计划） | AJ95: 第六考场 | AK95: 1
A96: 178 | B96: 王凡军 | C96: ld20200287 | D96: ld2020178 | E96: 男 | F96: 布依族 | G96: 1995-01-01 | H96: 共青团员 | I96: 522326199501011811 | J96: 大学本科 | L96: 黔南民族师范学院 | M96: 数学与应用数学 | N96: 应届 | O96: 都不是 | P96: 师范类 | Q96: 有 | R96: 初级中学教师资格 | S96: 贵州省黔西南布依族苗族自治州望谟县石屯镇边界村坡贵组 | T96: 15885975400 | U96: 罗甸县 | V96: 初中 | W96: 数学 | Y96: 76.0 | Z96: 84.50 | AA96: 81.10 | AB96: 是 | AI96: 中央（特岗计划） | AJ96: 第六考场 | AK96: 1
A97: 166 | B97: 罗桂梅 | C97: ld20200275 | D97: ld2020166 | E97: 女 | F97: 布依族 | G97: 1998-05-16 | H97: 群众 | I97: 522326199805160824 | J97: 大学本科 | L97: 贵州大学 | M97: 数学与应用数学 | N97: 应届 | O97: 都不是 | P97: 非师范类 | Q97: 无 | R97: 无 | S97: 贵州省黔西南布依族苗族自治州望谟县 | T97: 18386442975 | U97: 罗甸县 | V97: 初中 | W97: 数学 | Y97: 75.5 | Z97: 83.67 | AA97: 80.40 | AB97: 是 | AI97: 中央（特岗计划） | AJ97: 第六考场 | AK97: 1
A98: 168 | B98: 张文才 | C98: ld20200277 | D98: ld2020168 | E98: 男 | F98: 苗族 | G98: 1994-01-11 | H98: 共青团员 | I98: 522630199401110653 | J98: 大学本科 | L98: 黔南民族师范学院 | M98: 数学与应用数学 | N98: 应届 | O98: 都不是 | P98: 师范类 | Q98: 无 | R98: 无 | S98: 贵州省黔东南苗族侗族自治州台江县方召乡巫脚南村二组 | T98: 15186818697 | U98: 罗甸县 | V98: 初中 | W98: 数学 | Y98: 74.5 | Z98: 82.87 | AA98: 79.52 | AB98: 是 | AI98: 中央（特岗计划） | AJ98: 第六考场 | AK98: 1
A99: 164 | B99: 杨健康 | C99: ld20200273 | D99: ld2020164 | E99: 男 | F99: 汉族 | G99: 1998-12-12 | H99: 共青团员 | I99: 52272919981212091X | J99: 大学本科 | L99: 贵州民族大学 | M99: 数学与应用数学 | N99: 应届 | O99: 都不是 | P99: 非师范类 | Q99: 无 | R99: 无 | S99: 贵州省黔南布依族苗族自治州长顺县摆所镇摆所村石板房组 | T99: 18385474260 | U99: 罗甸县 | V99: 初中 | W99: 数学 | Y99: 65.5 | Z99: 87.17 | AA99: 78.50 | AB99: 是 | AI99: 中央（特岗计划） | AJ99: 第五考场 | AK99: 1
A100: 171 | B100: 何之林 | C100: ld20200280 | D100: ld2020171 | E100: 男 | F100: 土家族 | G100: 1996-11-16 | H100: 中共党员 | I100: 52222719961116721X | J100: 大学本科 | L100: 贵州财经大学 | M100: 数学与应用数学 | N100: 往届 | O100: 都不是 | P100: 非师范类 | Q100: 无 | R100: 无 | S100: 贵州省铜仁市德江县 | T100: 16685066007 | U100: 罗甸县 | V100: 初中 | W100: 数学 | Y100: 69.3 | Z100: 83.93 | AA100: 78.08 | AB100: 是 | AI100: 中央（特岗计划） | AJ100: 第六考场 | AK100: 1
A101: 177 | B101: 韦万里 | C101: ld20200286 | D101: ld2020177 | E101: 男 | F101: 布依族 | G101: 1996-07-25 | H101: 共青团员 | I101: 522326199607250810 | J101: 大学本科 | L101: 贵州民族大学 | M101: 数学与应用数学 | N101: 应届 | O101: 都不是 | P101: 非师范类 | Q101: 无 | R101: 无 | S101: 贵州省黔西南布依族苗族自治州望谟县 | T101: 18886903565 | U101: 罗甸县 | V101: 初中 | W101: 数学 | Y101: 70.5 | Z101: 82.93 | AA101: 77.96 | AB101: 是 | AI101: 中央（特岗计划） | AJ101: 第六考场 | AK101: 1
A102: 189 | B102: 王交琴 | C102: ld20200299 | D102: ld2020189 | E102: 女 | F102: 布依族 | G102: 1996-11-09 | H102: 中共党员 | I102: 52232619961109104X | J102: 大学本科 | L102: 贵州民族大学 | M102: 数学与应用数学 | N102: 应届 | O102: 都不是 | P102: 非师范类 | Q102: 无 | R102: 无 | S102: 贵州省黔西南布依族苗族自治州望谟县乐旺镇乐旺村新寨组92号 | T102: 18386473573 | U102: 罗甸县 | V102: 初中 | W102: 数学 | Y102: 68.5 | Z102: 82.03 | AA102: 76.62 | AB102: 是 | AI102: 中央（特岗计划） | AJ102: 第六考场 | AK102: 1
A103: 183 | B103: 杨本华 | C103: ld20200292 | D103: ld2020183 | E103: 男 | F103: 布依族 | G103: 1996-02-06 | H103: 共青团员 | I103: 522731199602062178 | J103: 大学本科 | L103: 黔南民族师范学院 | M103: 数学与应用数学 | N103: 往届 | O103: 都不是 | P103: 师范类 | Q103: 有 | R103: 高级中学教师资格 | S103: 贵州省黔南布依族苗族自治州惠水县 | T103: 18285427072 | U103: 罗甸县 | V103: 初中 | W103: 数学 | Y103: 65.0 | Z103: 82.33 | AA103: 75.40 | AB103: 是 | AI103: 中央（特岗计划） | AJ103: 第六考场 | AK103: 1
A104: 162 | B104: 吴老胡 | C104: ld20200303 | D104: ld2020162 | E104: 男 | F104: 水族 | G104: 1998-10-03 | H104: 群众 | I104: 522732199810031014 | J104: 大学本科 | L104: 黔南民族师范学院 | M104: 数学与应用数学 | N104: 往届 | O104: 都不是 | P104: 师范类 | Q104: 无 | R104: 无 | S104: 贵州省黔南布依族苗族自治州三都水族自治县 | T104: 18722834147 | U104: 罗甸县 | V104: 初中 | W104: 数学 | Y104: 55.0 | Z104: 87.17 | AA104: 74.30 | AB104: 是 | AI104: 中央（特岗计划） | AJ104: 第五考场 | AK104: 1
A105: 180 | B105: 韦帮文 | C105: ld20200289 | D105: ld2020180 | E105: 男 | F105: 布依族 | G105: 1995-10-28 | H105: 群众 | I105: 522326199510280052 | J105: 大学本科 | L105: 兴义民族师范学院 | M105: 数学与应用数学 | N105: 应届 | O105: 都不是 | P105: 师范类 | Q105: 无 | R105: 无 | S105: 贵州省黔西南布依族苗族自治州望谟县平洞街道办者康村二组 | T105: 18785906278 | U105: 罗甸县 | V105: 初中 | W105: 数学 | Y105: 64.8 | Z105: 80.60 | AA105: 74.28 | AB105: 是 | AI105: 中央（特岗计划） | AJ105: 第六考场 | AK105: 1
A106: 169 | B106: 彭方吉 | C106: ld20200278 | D106: ld2020169 | E106: 男 | F106: 汉族 | G106: 1995-03-09 | H106: 共青团员 | I106: 522724199503095739 | J106: 大学本科 | L106: 黔南民族师范学院 | M106: 数学与应用数学 | N106: 应届 | O106: 都不是 | P106: 非师范类 | Q106: 无 | R106: 无 | S106: 贵州省黔南布依族苗族自治州福泉市道坪镇谷龙村苎麻林组 | T106: 15185499182 | U106: 罗甸县 | V106: 初中 | W106: 数学 | Y106: 59.5 | Z106: 80.90 | AA106: 72.34 | AB106: 是 | AI106: 中央（特岗计划） | AJ106: 第六考场 | AK106: 1
A107: 175 | B107: 胡思会 | C107: ld20200284 | D107: ld2020175 | E107: 女 | F107: 彝族 | G107: 1995-01-02 | H107: 共青团员 | I107: 520203199501026122 | J107: 大学本科 | L107: 黔南民族师范学院 | M107: 数学与应用数学 | N107: 应届 | O107: 都不是 | P107: 师范类 | Q107: 无 | R107: 无 | S107: 贵州省六盘水市六枝特区梭戛乡沙子村九组 | T107: 15185512627 | U107: 罗甸县 | V107: 初中 | W107: 数学 | Y107: 50.5 | Z107: 83.90 | AA107: 70.54 | AB107: 是 | AI107: 中央（特岗计划） | AJ107: 第六考场 | AK107: 1
A108: 191 | B108: 余江 | C108: ld20200301 | D108: ld2020191 | E108: 男 | F108: 土家族 | G108: 1996-07-27 | H108: 共青团员 | I108: 522227199607271233 | J108: 大学本科 | L108: 贵州师范学院 | M108: 数学与应用数学 | N108: 应届 | O108: 都不是 | P108: 师范类 | Q108: 无 | R108: 无 | S108: 贵州省铜仁市德江县平原镇四合村王家山组 | T108: 13158060320 | U108: 罗甸县 | V108: 初中 | W108: 数学 | Y108: 50.5 | Z108: 83.10 | AA108: 70.06 | AB108: 是 | AI108: 中央（特岗计划） | AJ108: 第六考场 | AK108: 1
A109: 185 | B109: 陈小艳 | C109: ld20200294 | D109: ld2020185 | E109: 女 | F109: 汉族 | G109: 1996-01-06 | H109: 中共党员 | I109: 522728199601060041 | J109: 大学本科 | L109: 凯里学院 | M109: 数学与应用数学（数理金融方向） | N109: 往届 | O109: 都不是 | P109: 非师范类 | Q109: 无 | R109: 无 | S109: 贵州省黔南布依族苗族自治州罗甸县龙坪镇环城路2号千岛城 | T109: 18385836863 | U109: 罗甸县 | V109: 初中 | W109: 数学 | Y109: 49.0 | Z109: 82.43 | AA109: 69.06 | AB109: 是 | AI109: 中央（特岗计划） | AJ109: 第六考场 | AK109: 1
A110: 170 | B110: 罗锦学 | C110: ld20200279 | D110: ld2020170 | E110: 男 | F110: 布依族 | G110: 1997-08-16 | H110: 中共党员 | I110: 522326199708162836 | J110: 大学本科 | L110: 兴义民族师范学院 | M110: 数学与应用数学 | N110: 往届 | O110: 都不是 | P110: 师范类 | Q110: 有 | R110: 高级中学教师资格 | S110: 贵州省黔西南布依族苗族自治州望谟县 | T110: 15117314994 | U110: 罗甸县 | V110: 初中 | W110: 数学 | Y110: 44.3 | Z110: 84.67 | AA110: 68.52 | AB110: 是 | AI110: 中央（特岗计划） | AJ110: 第六考场 | AK110: 1
A111: 176 | B111: 杨畅畅 | C111: ld20200285 | D111: ld2020176 | E111: 男 | F111: 汉族 | G111: 1995-06-20 | H111: 群众 | I111: 522322199506202419 | J111: 大学本科 | L111: 黔南民族师范学院 | M111: 数学与应用数学 | N111: 往届 | O111: 都不是 | P111: 师范类 | Q111: 有 | R111: 初级中学教师资格 | S111: 贵州省黔西南布依族苗族自治州兴仁县城南街道办事处杨泗屯村大俄厂组32号 | T111: 18722850776 | U111: 罗甸县 | V111: 初中 | W111: 数学 | Y111: 46.0 | Z111: 83.07 | AA111: 68.24 | AB111: 是 | AI111: 中央（特岗计划） | AJ111: 第六考场 | AK111: 1
A112: 184 | B112: 杨光祥 | C112: ld20200293 | D112: ld2020184 | E112: 男 | F112: 苗族 | G112: 1994-05-22 | H112: 共青团员 | I112: 522728199405222111 | J112: 大学本科 | L112: 黔南民族师范学院 | M112: 数学与应用数学 | N112: 往届 | O112: 都不是 | P112: 师范类 | Q112: 有 | R112: 高级中学教师资格 | S112: 贵州省黔南布依族苗族自治州罗甸县 | T112: 18385505837 | U112: 罗甸县 | V112: 初中 | W112: 数学 | Y112: 41.8 | Z112: 84.07 | AA112: 67.16 | AI112: 中央（特岗计划） | AJ112: 第六考场 | AK112: 1
A113: 188 | B113: 罗铧 | C113: ld20200297 | D113: ld2020188 | E113: 男 | F113: 布依族 | G113: 1997-07-05 | H113: 共青团员 | I113: 52232619970705063X | J113: 大学本科 | L113: 贵州师范大学求是学院 | M113: 数学与应用数学 | N113: 应届 | O113: 都不是 | P113: 师范类 | Q113: 无 | R113: 无 | S113: 贵州省黔西南布依族苗族自治州望谟县 | T113: 15086542611 | U113: 罗甸县 | V113: 初中 | W113: 数学 | Y113: 42.3 | Z113: 80.93 | AA113: 65.48 | AI113: 中央（特岗计划） | AJ113: 第六考场 | AK113: 1
A114: 179 | B114: 覃应昌 | C114: ld20200288 | D114: ld2020179 | E114: 男 | F114: 布依族 | G114: 1996-11-11 | H114: 共青团员 | I114: 522732199611111011 | J114: 大学本科 | L114: 江西师范大学 | M114: 数学与应用数学 | N114: 往届 | O114: 都不是 | P114: 师范类 | Q114: 有 | R114: 高级中学教师资格 | S114: 贵州省黔南布依族苗族自治州三都水族自治县 | T114: 18188043290 | U114: 罗甸县 | V114: 初中 | W114: 数学 | Y114: 41.8 | Z114: 80.13 | AA114: 64.80 | AI114: 中央（特岗计划） | AJ114: 第六考场 | AK114: 1
A115: 165 | B115: 周子胜 | C115: ld20200274 | D115: ld2020165 | E115: 男 | F115: 布依族 | G115: 1995-11-18 | H115: 共青团员 | I115: 522728199511181819 | J115: 大学本科 | L115: 贵州师范大学求是学院 | M115: 数学与应用数学 | N115: 应届 | O115: 都不是 | P115: 师范类 | Q115: 无 | R115: 无 | S115: 贵州省黔南布依族苗族自治州罗甸县 | T115: 18375066619 | U115: 罗甸县 | V115: 初中 | W115: 数学 | Y115: 34.5 | Z115: 83.37 | AA115: 63.82 | AI115: 中央（特岗计划） | AJ115: 第六考场 | AK115: 1
A116: 190 | B116: 罗开龙 | C116: ld20200300 | D116: ld2020190 | E116: 男 | F116: 布依族 | G116: 1995-02-28 | H116: 群众 | I116: 522701199502281914 | J116: 大学本科 | L116: 黔南民族师范学院 | M116: 数学与应用数学 | N116: 往届 | O116: 都不是 | P116: 师范类 | Q116: 无 | R116: 无 | S116: 贵州省黔南布依族苗族自治州都匀市 | T116: 18375209208 | U116: 罗甸县 | V116: 初中 | W116: 数学 | Y116: 33.8 | Z116: 82.63 | AA116: 63.10 | AI116: 中央（特岗计划） | AJ116: 第六考场 | AK116: 1
A117: 174 | B117: 潘绍作 | C117: ld20200283 | D117: ld2020174 | E117: 男 | F117: 水族 | G117: 1998-02-01 | H117: 共青团员 | I117: 522722199802011010 | J117: 大学本科 | L117: 黔南民族师范学院 | M117: 数学与应用数学 | N117: 往届 | O117: 都不是 | P117: 师范类 | Q117: 无 | R117: 无 | S117: 贵州省黔南布依族苗族自治州荔波县佳荣镇甲料村柳寨组11号 | T117: 15117858144 | U117: 罗甸县 | V117: 初中 | W117: 数学 | Y117: 32.3 | Z117: 82.07 | AA117: 62.16 | AI117: 中央（特岗计划） | AJ117: 第六考场 | AK117: 1
A118: 167 | B118: 胡文彩 | C118: ld20200276 | D118: ld2020167 | E118: 女 | F118: 汉族 | G118: 1996-08-10 | H118: 共青团员 | I118: 522326199608102043 | J118: 大学本科 | L118: 黔南民族师范学院 | M118: 数学与应用数学 | N118: 往届 | O118: 都不是 | P118: 师范类 | Q118: 无 | R118: 无 | S118: 贵州省黔西南布依族苗族自治州望谟县 | T118: 18722837846 | U118: 罗甸县 | V118: 初中 | W118: 数学 | Y118: 29.0 | Z118: 83.33 | AA118: 61.60 | AI118: 中央（特岗计划） | AJ118: 第六考场 | AK118: 1
A119: 172 | B119: 刘治奕 | C119: ld20200281 | D119: ld2020172 | E119: 女 | F119: 汉族 | G119: 1997-06-04 | H119: 共青团员 | I119: 522728199706040063 | J119: 大学本科 | L119: 黑龙江科技大学 | M119: 信息与计算科学 | N119: 往届 | O119: 都不是 | P119: 非师范类 | Q119: 无 | R119: 无 | S119: 贵州省黔南布依族苗族自治州罗甸县 | T119: 18375120140 | U119: 罗甸县 | V119: 初中 | W119: 数学 | Y119: 18.0 | Z119: 82.77 | AA119: 56.86 | AI119: 中央（特岗计划） | AJ119: 第六考场 | AK119: 1
A120: 163 | B120: 罗家杰 | C120: ld20200272 | D120: ld2020163 | E120: 男 | F120: 布依族 | G120: 1996-11-14 | H120: 群众 | I120: 522728199611140010 | J120: 大学本科 | L120: 凯里学院 | M120: 数学与应用数学 | N120: 往届 | O120: 都不是 | P120: 师范类 | Q120: 无 | R120: 无 | S120: 贵州省黔南布依族苗族自治州罗甸县 | T120: 15117806202 | U120: 罗甸县 | V120: 初中 | W120: 数学 | Y120: 59.0 | Z120: 缺考 | AA120: =Y120*0.4 -> 23.60 | AI120: 中央（特岗计划） | AJ120: 第五考场 | AK120: 1
A121: 186 | B121: 彭明涛 | C121: ld20200295 | D121: ld2020186 | E121: 男 | F121: 汉族 | G121: 1995-11-18 | H121: 共青团员 | I121: 522728199511183611 | J121: 大学本科 | L121: 贵阳学院 | M121: 数学与应用数学 | N121: 往届 | O121: 都不是 | P121: 师范类 | Q121: 无 | R121: 无 | S121: 贵州省黔南布依族苗族自治州罗甸县沫阳镇沫阳村纳刮组 | T121: 15185463290 | U121: 罗甸县 | V121: 初中 | W121: 数学 | Y121: 33.5 | Z121: 缺考 | AA121: =Y121*0.4 -> 13.40 | AI121: 中央（特岗计划） | AJ121: 第六考场 | AK121: 1
A122: 192 | B122: 罗卫星 | C122: ld20200302 | D122: ld2020192 | E122: 男 | F122: 布依族 | G122: 1991-09-25 | H122: 群众 | I122: 522731199109255734 | J122: 大学本科 | L122: 兴义民族师范学院 | M122: 数学与应用数学 | N122: 往届 | O122: 都不是 | P122: 师范类 | Q122: 有 | R122: 高级中学教师资格 | S122: 贵州省黔南布依族苗族自治州惠水县雅水镇地关村大寨一组2号 | T122: 19185530381 | U122: 罗甸县 | V122: 初中 | W122: 数学 | Y122: 30.0 | Z122: 0.00 | AA122: =Y122*0.4+Z122*0.6 -> 12.00 | AI122: 中央（特岗计划） | AJ122: 第六考场 | AK122: 1
A123: 181 | B123: 韦帅 | C123: ld20200290 | D123: ld2020181 | E123: 男 | F123: 布依族 | G123: 1994-08-16 | H123: 共青团员 | I123: 52232619940816141X | J123: 大学本科 | L123: 兴义民族师范学院 | M123: 数学与应用数学 | N123: 往届 | O123: 都不是 | P123: 师范类 | Q123: 无 | R123: 无 | S123: 贵州省黔西南布依族苗族自治州望谟县 | T123: 18785928576 | U123: 罗甸县 | V123: 初中 | W123: 数学 | Y123: 29.8 | Z123: 缺考 | AA123: =Y123*0.4 -> 11.92 | AI123: 中央（特岗计划） | AJ123: 第六考场 | AK123: 1
A124: 182 | B124: 王艳 | C124: ld20200291 | D124: ld2020182 | E124: 女 | F124: 汉族 | G124: 1995-12-13 | H124: 共青团员 | I124: 522728199512134520 | J124: 大学本科 | L124: 安顺学院 | M124: 数学与应用数学 | N124: 往届 | O124: 都不是 | P124: 师范类 | Q124: 无 | R124: 无 | S124: 贵州省黔南布依族苗族自治州罗甸县 | T124: 18375046440 | U124: 罗甸县 | V124: 初中 | W124: 数学 | Y124: 27.0 | Z124: 缺考 | AA124: =Y124*0.4 -> 10.80 | AI124: 中央（特岗计划） | AJ124: 第六考场 | AK124: 1
A125: 187 | B125: 黎青龙 | C125: ld20200296 | D125: ld2020187 | E125: 男 | F125: 苗族 | G125: 1999-08-17 | H125: 共青团员 | I125: 522728199908176612 | J125: 大学本科 | L125: 贵阳学院 | M125: 数学与应用数学 | N125: 应届 | O125: 都不是 | P125: 师范类 | Q125: 无 | R125: 无 | S125: 贵州省黔南布依族苗族自治州罗甸县红水河镇胡家湾村白岩脚组39号 | T125: 18385561127 | U125: 罗甸县 | V125: 初中 | W125: 数学 | Y125: 22.5 | Z125: 缺考 | AA125: =Y125*0.4 -> 9.00 | AI125: 中央（特岗计划） | AJ125: 第六考场 | AK125: 1
A126: 489 | B126: 黄热飞 | C126: ld20200735 | D126: ld2020489 | E126: 女 | F126: 布依族 | G126: 1997-11-07 | H126: 共青团员 | I126: 522728199711070064 | J126: 大学本科 | L126: 黔南民族师范学院 | M126: 生物科学 | N126: 应届 | O126: 都不是 | P126: 师范类 | Q126: 无 | R126: 无 | S126: 贵州省黔南布依族苗族自治州罗甸县 | T126: 19151300351 | U126: 罗甸县 | V126: 初中 | W126: 生物 | Y126: 56.0 | Z126: 87.10 | AA126: =Y126*0.4+Z126*0.6 -> 74.66 | AB126: 是 | AI126: 中央（特岗计划） | AJ126: 第十六考场 | AK126: 1
A127: 495 | B127: 罗季美 | C127: ld20200757 | D127: ld2020495 | E127: 女 | F127: 布依族 | G127: 1998-04-24 | H127: 共青团员 | I127: 522701199804246268 | J127: 大学本科 | L127: 贵州师范大学 | M127: 生物科学 | N127: 应届 | O127: 都不是 | P127: 师范类 | Q127: 无 | R127: 无 | S127: 贵州省黔南布依族苗族自治州都匀市小围寨办事处沙井街村排田五组17号 | T127: 15772439691 | U127: 罗甸县 | V127: 初中 | W127: 生物 | Y127: 53.0 | Z127: 86.40 | AA127: 73.04 | AB127: 是 | AI127: 中央（特岗计划） | AJ127: 第十六考场 | AK127: 1
A128: 494 | B128: 兰方玉 | C128: ld20200749 | D128: ld2020494 | E128: 女 | F128: 布依族 | G128: 1993-10-08 | H128: 共青团员 | I128: 522724199310082827 | J128: 大学本科 | L128: 西南民族大学 | M128: 生物技术 | N128: 往届 | O128: 都不是 | P128: 非师范类 | Q128: 有 | R128: 高级中学教师资格 | S128: 贵州省黔南布依族苗族自治州福泉市 | T128: 15685028797 | U128: 罗甸县 | V128: 初中 | W128: 生物 | Y128: 54.0 | Z128: 85.27 | AA128: 72.76 | AB128: 是 | AI128: 中央（特岗计划） | AJ128: 第十六考场 | AK128: 1
A129: 491 | B129: 韦再高 | C129: ld20200739 | D129: ld2020491 | E129: 男 | F129: 水族 | G129: 1996-03-01 | H129: 群众 | I129: 522732199603015230 | J129: 大学本科 | L129: 贵州师范大学 | M129: 生物科学 | N129: 往届 | O129: 都不是 | P129: 师范类 | Q129: 有 | R129: 高级中学教师资格 | S129: 贵州省黔南布依族苗族自治州三都水族自治县 | T129: 18786399572 | U129: 罗甸县 | V129: 初中 | W129: 生物 | Y129: 49.0 | Z129: 88.23 | AA129: 72.54 | AI129: 中央（特岗计划） | AJ129: 第十六考场 | AK129: 1
A130: 490 | B130: 罗艳玲 | C130: ld20200736 | D130: ld2020490 | E130: 女 | F130: 汉族 | G130: 1996-01-27 | H130: 群众 | I130: 522326199601271629 | J130: 大学本科 | L130: 六盘水师范学院 | M130: 生物科学 | N130: 往届 | O130: 都不是 | P130: 师范类 | Q130: 有 | R130: 高级中学教师资格 | S130: 贵州省黔西南布依族苗族自治州望谟县 | T130: 15121726487 | U130: 罗甸县 | V130: 初中 | W130: 生物 | Y130: 49.0 | Z130: 87.47 | AA130: 72.08 | AI130: 中央（特岗计划） | AJ130: 第十六考场 | AK130: 1
A131: 493 | B131: 李有浪 | C131: ld20200747 | D131: ld2020493 | E131: 女 | F131: 布依族 | G131: 1992-02-27 | H131: 群众 | I131: 522727199202273641 | J131: 大学本科 | L131: 黔南民族师范学院 | M131: 生物科学 | N131: 往届 | O131: 都不是 | P131: 师范类 | Q131: 有 | R131: 高级中学教师资格 | S131: 贵州省黔南布依族苗族自治州平塘县 | T131: 13765494178 | U131: 罗甸县 | V131: 初中 | W131: 生物 | Y131: 50.0 | Z131: 86.13 | AA131: 71.68 | AI131: 中央（特岗计划） | AJ131: 第十六考场 | AK131: 1
A132: 492 | B132: 王澳 | C132: ld20200756 | D132: ld2020492 | E132: 男 | F132: 布依族 | G132: 1997-03-02 | H132: 中共党员 | I132: 52232619970302221X | J132: 大学本科 | L132: 黔南民族师范学院 | M132: 生物科学 | N132: 应届 | O132: 都不是 | P132: 师范类 | Q132: 无 | R132: 无 | S132: 贵州省黔西南布依族苗族自治州望谟县油迈乡巧路村打上组230号 | T132: 18085463914 | U132: 罗甸县 | V132: 初中 | W132: 生物 | Y132: 48.0 | Z132: 86.93 | AA132: 71.36 | AI132: 中央（特岗计划） | AJ132: 第十六考场 | AK132: 1
A133: 487 | B133: 杨健 | C133: ld20200738 | D133: ld2020487 | E133: 男 | F133: 布依族 | G133: 1994-04-24 | H133: 群众 | I133: 522727199404244259 | J133: 大学本科 | L133: 六盘水师范学院 | M133: 生物科学 | N133: 往届 | O133: 都不是 | P133: 师范类 | Q133: 有 | R133: 高级中学教师资格 | S133: 贵州省黔南布依族苗族自治州平塘县 | T133: 18216728481 | U133: 罗甸县 | V133: 初中 | W133: 生物 | Y133: 48.0 | Z133: 84.93 | AA133: 70.16 | AI133: 中央（特岗计划） | AJ133: 第十六考场 | AK133: 1
A134: 488 | B134: 罗小娇 | C134: ld20200733 | D134: ld2020488 | E134: 女 | F134: 布依族 | G134: 1995-12-13 | H134: 共青团员 | I134: 52272819951213394X | J134: 大学本科 | L134: 黔南民族师范学院 | M134: 生物科学 | N134: 往届 | O134: 都不是 | P134: 师范类 | Q134: 无 | R134: 无 | S134: 贵州省黔南布依族苗族自治州罗甸县董当乡勇进村六组 | T134: 18722810854 | U134: 罗甸县 | V134: 初中 | W134: 生物 | Y134: 51.0 | Z134: 缺考 | AA134: =Y134*0.4 -> 20.40 | AI134: 中央（特岗计划） | AJ134: 第十六考场 | AK134: 1
A135: 480 | B135: 黄宁 | C135: ld20200698 | D135: ld2020480 | E135: 女 | F135: 布依族 | G135: 1997-09-12 | H135: 中共党员 | I135: 522728199709123921 | J135: 大学本科 | L135: 西北民族大学 | M135: 历史学 | N135: 应届 | O135: 都不是 | P135: 非师范类 | Q135: 无 | R135: 无 | S135: 贵州省黔南布依族苗族自治州罗甸县沫阳镇董当乡董望村红岩一组33号 | T135: 18294484022 | U135: 罗甸县 | V135: 初中 | W135: 历史 | Y135: 85.0 | Z135: 86.07 | AA135: =Y135*0.4+Z135*0.6 -> 85.64 | AB135: 是 | AI135: 中央（特岗计划） | AJ135: 第十五考场 | AK135: 1
A136: 477 | B136: 熊方佩 | C136: ld20200687 | D136: ld2020477 | E136: 女 | F136: 彝族 | G136: 1994-11-29 | H136: 中共党员 | I136: 522701199411292829 | J136: 大学本科 | L136: 铜仁学院 | M136: 历史学 | N136: 往届 | O136: 都不是 | P136: 师范类 | Q136: 有 | R136: 高级中学教师资格 | S136: 贵州省黔南布依族苗族自治州都匀市 | T136: 15086150118 | U136: 罗甸县 | V136: 初中 | W136: 历史 | Y136: 80.5 | Z136: 87.00 | AA136: 84.40 | AB136: 是 | AI136: 中央（特岗计划） | AJ136: 第十五考场 | AK136: 1
A137: 475 | B137: 赵永雪 | C137: ld20200732 | D137: ld2020475 | E137: 女 | F137: 汉族 | G137: 1998-02-20 | H137: 共青团员 | I137: 522731199802208362 | J137: 大学本科 | L137: 浙江师范大学 | M137: 历史学 | N137: 应届 | O137: 都不是 | P137: 师范类 | Q137: 认定通过 | R137: 高级中学教师资格 | S137: 贵州省黔南布依族苗族自治州惠水县羡塘镇白硐村 | T137: 18375194025 | U137: 罗甸县 | V137: 初中 | W137: 历史 | Y137: 77.8 | Z137: 85.81 | AA137: 82.61 | AB137: 是 | AI137: 中央（特岗计划） | AJ137: 第十五考场 | AK137: 1
A138: 485 | B138: 罗朝东 | C138: ld20200720 | D138: ld2020485 | E138: 女 | F138: 布依族 | G138: 1995-12-09 | H138: 共青团员 | I138: 522728199512090046 | J138: 大学本科 | L138: 黔南民族师范学院 | M138: 历史学 | N138: 往届 | O138: 都不是 | P138: 师范类 | Q138: 有 | R138: 高级中学教师资格 | S138: 贵州省黔南布依族苗族自治州罗甸县 | T138: 15285319436 | U138: 罗甸县 | V138: 初中 | W138: 历史 | Y138: 74.0 | Z138: 87.90 | AA138: 82.34 | AB138: 是 | AI138: 中央（特岗计划） | AJ138: 第十六考场 | AK138: 1
A139: 481 | B139: 邹学训 | C139: ld20200705 | D139: ld2020481 | E139: 男 | F139: 汉族 | G139: 1993-05-20 | H139: 共青团员 | I139: 522427199305207456 | J139: 大学本科 | L139: 贵州师范学院 | M139: 历史学 | N139: 往届 | O139: 都不是 | P139: 师范类 | Q139: 有 | R139: 高级中学教师资格 | S139: 贵州省毕节市威宁彝族回族苗族自治县 | T139: 15885022694 | U139: 罗甸县 | V139: 初中 | W139: 历史 | Y139: 78.0 | Z139: 83.99 | AA139: 81.59 | AB139: 是 | AI139: 中央（特岗计划） | AJ139: 第十五考场 | AK139: 1
A140: 486 | B140: 杨红霄 | C140: ld20200727 | D140: ld2020486 | E140: 女 | F140: 布依族 | G140: 1997-02-04 | H140: 共青团员 | I140: 52272719970204452X | J140: 大学本科 | L140: 黔南民族师范学院 | M140: 历史学 | N140: 应届 | O140: 都不是 | P140: 师范类 | Q140: 无 | R140: 无 | S140: 贵州省黔南布依族苗族自治州平塘县塘边镇清水村巨木组 | T140: 15286261434 | U140: 罗甸县 | V140: 初中 | W140: 历史 | Y140: 72.8 | Z140: 87.03 | AA140: 81.34 | AI140: 中央（特岗计划） | AJ140: 第十六考场 | AK140: 1
A141: 479 | B141: 方草 | C141: ld20200695 | D141: ld2020479 | E141: 女 | F141: 布依族 | G141: 1997-10-22 | H141: 共青团员 | I141: 522728199710223321 | J141: 大学本科 | L141: 盐城师范学院 | M141: 历史学 | N141: 应届 | O141: 都不是 | P141: 师范类 | Q141: 无 | R141: 无 | S141: 贵州省黔南布依族苗族自治州罗甸县 | T141: 18224880024 | U141: 罗甸县 | V141: 初中 | W141: 历史 | Y141: 75.5 | Z141: 84.47 | AA141: 80.88 | AI141: 中央（特岗计划） | AJ141: 第十五考场 | AK141: 1
A142: 476 | B142: 杨巧巧 | C142: ld20200683 | D142: ld2020476 | E142: 女 | F142: 布依族 | G142: 1994-07-15 | H142: 共青团员 | I142: 52273119940715902X | J142: 大学本科 | L142: 南阳师范学院 | M142: 历史学 | N142: 往届 | O142: 都不是 | P142: 师范类 | Q142: 有 | R142: 高级中学教师资格 | S142: 贵州省黔南布依族苗族自治州惠水县王佑镇平贡村平贡五组16号 | T142: 14785219860 | U142: 罗甸县 | V142: 初中 | W142: 历史 | Y142: 73.5 | Z142: 85.64 | AA142: 80.78 | AI142: 中央（特岗计划） | AJ142: 第十五考场 | AK142: 1
A143: 478 | B143: 孙成娟 | C143: ld20200689 | D143: ld2020478 | E143: 女 | F143: 汉族 | G143: 1995-05-25 | H143: 中共党员 | I143: 522727199505255184 | J143: 大学本科 | L143: 六盘水师范学院 | M143: 历史学 | N143: 往届 | O143: 都不是 | P143: 师范类 | Q143: 有 | R143: 高级中学教师资格 | S143: 贵州省黔南布依族苗族自治州平塘县上梭北环社区 | T143: 18216818145 | U143: 罗甸县 | V143: 初中 | W143: 历史 | Y143: 75.5 | Z143: 83.83 | AA143: 80.50 | AI143: 中央（特岗计划） | AJ143: 第十五考场 | AK143: 1
A144: 484 | B144: 杨柳 | C144: ld20200719 | D144: ld2020484 | E144: 女 | F144: 苗族 | G144: 1997-02-21 | H144: 共青团员 | I144: 522622199702210025 | J144: 大学本科 | L144: 凯里学院 | M144: 历史学 | N144: 应届 | O144: 都不是 | P144: 师范类 | Q144: 无 | R144: 无 | S144: 贵州省黔东南苗族侗族自治州凯里市 | T144: 15870267798 | U144: 罗甸县 | V144: 初中 | W144: 历史 | Y144: 76.0 | Z144: 缺考 | AA144: =Y144*0.4 -> 30.40 | AI144: 中央（特岗计划） | AJ144: 第十五考场 | AK144: 1
A145: 482 | B145: 涂天万 | C145: ld20200716 | D145: ld2020482 | E145: 男 | F145: 汉族 | G145: 1993-03-15 | H145: 中共党员 | I145: 522728199303157574 | J145: 大学本科 | L145: 安顺学院 | M145: 历史学 | N145: 往届 | O145: 都不是 | P145: 师范类 | Q145: 有 | R145: 高级中学教师资格 | S145: 贵州省黔南布依族苗族自治州罗甸县 | T145: 13985306417 | U145: 罗甸县 | V145: 初中 | W145: 历史 | Y145: 75.3 | Z145: 缺考 | AA145: =Y145*0.4 -> 30.12 | AI145: 中央（特岗计划） | AJ145: 第十五考场 | AK145: 1
A146: 483 | B146: 陈美 | C146: ld20200717 | D146: ld2020483 | E146: 女 | F146: 汉族 | G146: 1994-06-07 | H146: 中共党员 | I146: 520221199406072123 | J146: 大学本科 | L146: 六盘水师范学院 | M146: 历史学 | N146: 往届 | O146: 都不是 | P146: 师范类 | Q146: 有 | R146: 高级中学教师资格 | S146: 贵州省六盘水市水城县 | T146: 18216527001 | U146: 罗甸县 | V146: 初中 | W146: 历史 | Y146: 75.3 | Z146: 缺考 | AA146: =Y146*0.4 -> 30.12 | AI146: 中央（特岗计划） | AJ146: 第十五考场 | AK146: 1
A147: 526 | B147: 徐巧 | C147: ld20200834 | D147: ld2020526 | E147: 女 | F147: 侗族 | G147: 1998-10-16 | H147: 共青团员 | I147: 522530199810162926 | J147: 大学本科 | L147: 兴义民族师范学院 | M147: 化学 | N147: 往届 | O147: 都不是 | P147: 师范类 | Q147: 有 | R147: 高级中学教师资格 | S147: 贵州省安顺市紫云苗族布依族自治县 | T147: 18785996647 | U147: 罗甸县 | V147: 初中 | W147: 化学 | Y147: 66.0 | Z147: 84.90 | AA147: =Y147*0.4+Z147*0.6 -> 77.34 | AB147: 是 | AI147: 中央（特岗计划） | AJ147: 第十七考场 | AK147: 1
A148: 528 | B148: 吴娜 | C148: ld20200841 | D148: ld2020528 | E148: 女 | F148: 汉族 | G148: 1997-10-02 | H148: 共青团员 | I148: 522728199710024525 | J148: 大学本科 | L148: 黔南民族师范学院 | M148: 化学 | N148: 应届 | O148: 都不是 | P148: 师范类 | Q148: 无 | R148: 无 | S148: 贵州省黔南布依族苗族自治州罗甸县沫阳镇白龙村董绕组 | T148: 15285311451 | U148: 罗甸县 | V148: 初中 | W148: 化学 | Y148: 59.0 | Z148: 85.60 | AA148: 74.96 | AB148: 是 | AI148: 中央（特岗计划） | AJ148: 第十七考场 | AK148: 1
A149: 512 | B149: 莫燕 | C149: ld20200785 | D149: ld2020512 | E149: 女 | F149: 布依族 | G149: 1996-03-08 | H149: 共青团员 | I149: 522732199603086127 | J149: 大学本科 | L149: 黔南民族师范学院 | M149: 化学 | N149: 应届 | O149: 都不是 | P149: 师范类 | Q149: 无 | R149: 无 | S149: 贵州省黔南布依族苗族自治州三都水族自治县 | T149: 15185489296 | U149: 罗甸县 | V149: 初中 | W149: 化学 | Y149: 54.0 | Z149: 87.93 | AA149: 74.36 | AB149: 是 | AI149: 中央（特岗计划） | AJ149: 第十六考场 | AK149: 1
A150: 510 | B150: 陈颜 | C150: ld20200779 | D150: ld2020510 | E150: 女 | F150: 汉族 | G150: 1996-08-26 | H150: 共青团员 | I150: 522326199608261626 | J150: 大学本科 | L150: 贵州师范学院 | M150: 化学 | N150: 应届 | O150: 都不是 | P150: 师范类 | Q150: 无 | R150: 无 | S150: 贵州省黔西南布依族苗族自治州望谟县 | T150: 18748863499 | U150: 罗甸县 | V150: 初中 | W150: 化学 | Y150: 55.0 | Z150: 86.27 | AA150: 73.76 | AB150: 是 | AI150: 中央（特岗计划） | AJ150: 第十六考场 | AK150: 1
A151: 508 | B151: 吴祖军 | C151: ld20200777 | D151: ld2020508 | E151: 男 | F151: 布依族 | G151: 1998-05-17 | H151: 共青团员 | I151: 522726199805171912 | J151: 大学本科 | L151: 黔南民族师范学院 | M151: 化学 | N151: 应届 | O151: 都不是 | P151: 师范类 | Q151: 无 | R151: 无 | S151: 贵州省黔南布依族苗族自治州独山县基长镇龙井新街 | T151: 13765489035 | U151: 罗甸县 | V151: 初中 | W151: 化学 | Y151: 51.0 | Z151: 87.40 | AA151: 72.84 | AB151: 是 | AI151: 中央（特岗计划） | AJ151: 第十六考场 | AK151: 1
A152: 516 | B152: 韦小娘 | C152: ld20200789 | D152: ld2020516 | E152: 女 | F152: 水族 | G152: 1998-02-01 | H152: 共青团员 | I152: 522732199802017327 | J152: 大学本科 | L152: 贵州师范学院 | M152: 应用化学 | N152: 应届 | O152: 都不是 | P152: 师范类 | Q152: 无 | R152: 无 | S152: 贵州省黔南布依族苗族自治州三都水族自治县 | T152: 13158006813 | U152: 罗甸县 | V152: 初中 | W152: 化学 | Y152: 53.0 | Z152: 85.87 | AA152: 72.72 | AB152: 是 | AI152: 中央（特岗计划） | AJ152: 第十六考场 | AK152: 1
A153: 509 | B153: 金庆谈 | C153: ld20200778 | D153: ld2020509 | E153: 男 | F153: 仫佬族 | G153: 1996-07-08 | H153: 共青团员 | I153: 522635199607083218 | J153: 大学本科 | L153: 贵州师范学院 | M153: 化学 | N153: 往届 | O153: 都不是 | P153: 师范类 | Q153: 有 | R153: 高级中学教师资格 | S153: 贵州省黔东南苗族侗族自治州麻江县 | T153: 18798568194 | U153: 罗甸县 | V153: 初中 | W153: 化学 | Y153: 49.0 | Z153: 88.03 | AA153: 72.42 | AB153: 是 | AI153: 中央（特岗计划） | AJ153: 第十六考场 | AK153: 1
A154: 524 | B154: 黄国秀 | C154: ld20200829 | D154: ld2020524 | E154: 女 | F154: 布依族 | G154: 1994-03-17 | H154: 共青团员 | I154: 522326199403171520 | J154: 大学本科 | L154: 遵义师范学院 | M154: 化学 | N154: 往届 | O154: 都不是 | P154: 师范类 | Q154: 有 | R154: 高级中学教师资格 | S154: 贵州省黔西南布依族苗族自治州望谟县 | T154: 19185964738 | U154: 罗甸县 | V154: 初中 | W154: 化学 | Y154: 54.0 | Z154: 84.23 | AA154: 72.14 | AB154: 是 | AI154: 中央（特岗计划） | AJ154: 第十七考场 | AK154: 1
A155: 518 | B155: 舒芳亚 | C155: ld20200798 | D155: ld2020518 | E155: 女 | F155: 汉族 | G155: 1997-09-05 | H155: 共青团员 | I155: 522724199709055708 | J155: 大学本科 | L155: 贵州大学 | M155: 化学 | N155: 往届 | O155: 都不是 | P155: 非师范类 | Q155: 有 | R155: 初级中学教师资格 | S155: 贵州省黔南布依族苗族自治州福泉市 | T155: 13668546280 | U155: 罗甸县 | V155: 初中 | W155: 化学 | Y155: 51.0 | Z155: 86.20 | AA155: 72.12 | AI155: 中央（特岗计划） | AJ155: 第十七考场 | AK155: 1
A156: 513 | B156: 罗家程 | C156: ld20200786 | D156: ld2020513 | E156: 女 | F156: 布依族 | G156: 1996-07-11 | H156: 中共党员 | I156: 522726199607114749 | J156: 大学本科 | L156: 黔南民族师范学院 | M156: 化学 | N156: 应届 | O156: 都不是 | P156: 师范类 | Q156: 无 | R156: 无 | S156: 贵州省黔南布依族苗族自治州独山县 | T156: 18224801698 | U156: 罗甸县 | V156: 初中 | W156: 化学 | Y156: 50.0 | Z156: 86.70 | AA156: 72.02 | AI156: 中央（特岗计划） | AJ156: 第十六考场 | AK156: 1
A157: 520 | B157: 钱锋 | C157: ld20200808 | D157: ld2020520 | E157: 男 | F157: 苗族 | G157: 1994-10-08 | H157: 中共党员 | I157: 522728199410080015 | J157: 大学本科 | L157: 黔南民族师范学院 | M157: 化学 | N157: 往届 | O157: 都不是 | P157: 师范类 | Q157: 有 | R157: 高级中学教师资格 | S157: 贵州省黔南布依族苗族自治州罗甸县 | T157: 18722851038 | U157: 罗甸县 | V157: 初中 | W157: 化学 | Y157: 50.0 | Z157: 86.17 | AA157: 71.70 | AI157: 中央（特岗计划） | AJ157: 第十七考场 | AK157: 1
A158: 523 | B158: 罗珍想 | C158: ld20200828 | D158: ld2020523 | E158: 女 | F158: 布依族 | G158: 1998-07-15 | H158: 共青团员 | I158: 522326199807151024 | J158: 大学本科 | L158: 湖北师范大学 | M158: 化学 | N158: 应届 | O158: 都不是 | P158: 师范类 | Q158: 无 | R158: 无 | S158: 贵州省黔西南布依族苗族自治州望谟县乐旺镇油啥村四组 | T158: 15797265735 | U158: 罗甸县 | V158: 初中 | W158: 化学 | Y158: 53.0 | Z158: 84.13 | AA158: 71.68 | AI158: 中央（特岗计划） | AJ158: 第十七考场 | AK158: 1
A159: 511 | B159: 韦小壹 | C159: ld20200784 | D159: ld2020511 | E159: 女 | F159: 苗族 | G159: 1992-07-05 | H159: 共青团员 | I159: 522728199207053329 | J159: 大学本科 | L159: 铜仁学院 | M159: 化学 | N159: 往届 | O159: 都不是 | P159: 师范类 | Q159: 有 | R159: 初级中学教师资格 | S159: 贵州省黔南布依族苗族自治州罗甸县 | T159: 13688546505 | U159: 罗甸县 | V159: 初中 | W159: 化学 | Y159: 49.0 | Z159: 86.30 | AA159: 71.38 | AI159: 中央（特岗计划） | AJ159: 第十六考场 | AK159: 1
A160: 514 | B160: 吴继甫 | C160: ld20200787 | D160: ld2020514 | E160: 男 | F160: 布依族 | G160: 1994-10-18 | H160: 群众 | I160: 522726199410181219 | J160: 大学本科 | L160: 遵义师范学院 | M160: 应用化学（精细化工方向） | N160: 往届 | O160: 都不是 | P160: 非师范类 | Q160: 有 | R160: 初级中学教师资格 | S160: 贵州省黔南布依族苗族自治州独山县 | T160: 18185431103 | U160: 罗甸县 | V160: 初中 | W160: 化学 | Y160: 48.0 | Z160: 86.67 | AA160: 71.20 | AI160: 中央（特岗计划） | AJ160: 第十六考场 | AK160: 1
A161: 519 | B161: 王安妮 | C161: ld20200805 | D161: ld2020519 | E161: 女 | F161: 布依族 | G161: 1995-05-16 | H161: 共青团员 | I161: 522326199505161446 | J161: 大学本科 | L161: 凯里学院 | M161: 化学 | N161: 往届 | O161: 都不是 | P161: 师范类 | Q161: 无 | R161: 无 | S161: 贵州省黔西南布依族苗族自治州望谟县石屯镇 | T161: 18385801030 | U161: 罗甸县 | V161: 初中 | W161: 化学 | Y161: 52.0 | Z161: 83.70 | AA161: 71.02 | AI161: 中央（特岗计划） | AJ161: 第十七考场 | AK161: 1
A162: 527 | B162: 侯廷虎 | C162: ld20200836 | D162: ld2020527 | E162: 男 | F162: 苗族 | G162: 1998-05-09 | H162: 共青团员 | I162: 52272319980509441X | J162: 大学本科 | L162: 西藏大学 | M162: 化学 | N162: 应届 | O162: 都不是 | P162: 师范类 | Q162: 有 | R162: 高级中学教师资格 | S162: 贵州省黔南布依族苗族自治州贵定县德新镇四寨村谷撒大寨 | T162: 18885407982 | U162: 罗甸县 | V162: 初中 | W162: 化学 | Y162: 53.0 | Z162: 82.10 | AA162: 70.46 | AI162: 中央（特岗计划） | AJ162: 第十七考场 | AK162: 1
A163: 515 | B163: 罗艳丽 | C163: ld20200788 | D163: ld2020515 | E163: 女 | F163: 布依族 | G163: 1992-06-08 | H163: 中共党员 | I163: 522728199206083921 | J163: 大学本科 | L163: 黔南民族师范学院 | M163: 化学 | N163: 往届 | O163: 都不是 | P163: 师范类 | Q163: 有 | R163: 高级中学教师资格 | S163: 贵州省黔南布依族苗族自治州罗甸县沫阳镇跃进村三组 | T163: 13628544978 | U163: 罗甸县 | V163: 初中 | W163: 化学 | Y163: 49.0 | Z163: 84.70 | AA163: 70.42 | AI163: 中央（特岗计划） | AJ163: 第十六考场 | AK163: 1
A164: 529 | B164: 王惠英 | C164: ld20200827 | D164: ld2020529 | E164: 女 | F164: 苗族 | G164: 1995-05-30 | H164: 中共党员 | I164: 522731199505306345 | J164: 大学本科 | L164: 安顺学院 | M164: 化学 | N164: 往届 | O164: 都不是 | P164: 师范类 | Q164: 有 | R164: 高级中学教师资格 | S164: 贵州省黔南布依族苗族自治州惠水县摆金镇卜所村五组 | T164: 15885719750 | U164: 罗甸县 | V164: 初中 | W164: 化学 | Y164: 48.0 | Z164: 85.17 | AA164: 70.30 | AI164: 中央（特岗计划） | AJ164: 第十七考场 | AK164: 1
A165: 521 | B165: 王维维 | C165: ld20200795 | D165: ld2020521 | E165: 女 | F165: 汉族 | G165: 1992-07-17 | H165: 群众 | I165: 522728199207171229 | J165: 大学本科 | L165: 黔南民族师范学院 | M165: 化学 | N165: 应届 | O165: 都不是 | P165: 师范类 | Q165: 无 | R165: 无 | S165: 贵州省黔南布依族苗族自治州罗甸县 | T165: 15718647492 | U165: 罗甸县 | V165: 初中 | W165: 化学 | Y165: 48.0 | Z165: 84.83 | AA165: 70.10 | AI165: 中央（特岗计划） | AJ165: 第十七考场 | AK165: 1
A166: 517 | B166: 陆祯秋 | C166: ld20200791 | D166: ld2020517 | E166: 女 | F166: 布依族 | G166: 1998-07-15 | H166: 共青团员 | I166: 522728199807155425 | J166: 大学本科 | L166: 贵州师范大学 | M166: 化学 | N166: 应届 | O166: 都不是 | P166: 师范类 | Q166: 无 | R166: 无 | S166: 贵州省黔南布依族苗族自治州罗甸县 凤亭乡抗村村五组 | T166: 18722823347 | U166: 罗甸县 | V166: 初中 | W166: 化学 | Y166: 48.0 | Z166: 84.33 | AA166: 69.80 | AI166: 中央（特岗计划） | AJ166: 第十七考场 | AK166: 1
A167: 525 | B167: 杨贵香 | C167: ld20200831 | D167: ld2020525 | E167: 女 | F167: 布依族 | G167: 1998-01-28 | H167: 共青团员 | I167: 522731199801287062 | J167: 大学本科 | L167: 贵州师范大学 | M167: 化学 | N167: 应届 | O167: 都不是 | P167: 师范类 | Q167: 无 | R167: 无 | S167: 贵州省黔南布依族苗族自治州惠水县断杉镇满贡村二组 | T167: 18286423141 | U167: 罗甸县 | V167: 初中 | W167: 化学 | Y167: 49.0 | Z167: 82.67 | AA167: 69.20 | AI167: 中央（特岗计划） | AJ167: 第十七考场 | AK167: 1
A168: 522 | B168: 杨光凤 | C168: ld20200821 | D168: ld2020522 | E168: 女 | F168: 布依族 | G168: 1994-07-20 | H168: 共青团员 | I168: 522727199407204527 | J168: 大学本科 | L168: 贵州大学 | M168: 应用化学 | N168: 往届 | O168: 都不是 | P168: 非师范类 | Q168: 有 | R168: 高级中学教师资格 | S168: 贵州省黔南布依族苗族自治州平塘县 | T168: 13158015717 | U168: 罗甸县 | V168: 初中 | W168: 化学 | Y168: 59.0 | Z168: 缺考 | AA168: =Y168*0.4 -> 23.60 | AI168: 中央（特岗计划） | AJ168: 第十七考场 | AK168: 1
A169: 427 | B169: 杨金 | C169: ld20200572 | D169: ld2020427 | E169: 男 | F169: 汉族 | G169: 1995-02-03 | H169: 共青团员 | I169: 522731199502034153 | J169: 大学本科 | L169: 贵州师范大学 | M169: 地理科学 | N169: 往届 | O169: 都不有 | P169: 师范类 | Q169: 有 | R169: 高级中学教师资格 | S169: 贵州省黔南布依族苗族自治州惠水县摆金镇掌满村二组 | T169: 15086143743 | U169: 罗甸县 | V169: 初中 | W169: 地理 | Y169: 71.5 | Z169: 85.93 | AA169: =Y169*0.4+Z169*0.6 -> 80.16 | AB169: 是 | AI169: 中央（特岗计划） | AJ169: 第十四考场 | AK169: 1
A170: 425 | B170: 陈奇 | C170: ld20200564 | D170: ld2020425 | E170: 男 | F170: 布依族 | G170: 1994-11-04 | H170: 中共党员 | I170: 52273119941104759X | J170: 大学本科 | L170: 黔南民族师范学院 | M170: 地理科学 | N170: 往届 | O170: 都不有 | P170: 师范类 | Q170: 有 | R170: 高级中学教师资格 | S170: 贵州省黔南布依族苗族自治州惠水县断杉镇纳理村冗城组 | T170: 18785464002 | U170: 罗甸县 | V170: 初中 | W170: 地理 | Y170: 64.0 | Z170: 87.40 | AA170: 78.04 | AB170: 是 | AI170: 中央（特岗计划） | AJ170: 第十四考场 | AK170: 1
A171: 430 | B171: 刘秀娟 | C171: ld20200588 | D171: ld2020430 | E171: 女 | F171: 布依族 | G171: 1996-08-19 | H171: 中共党员 | I171: 522726199608192829 | J171: 大学本科 | L171: 黔南民族师范学院 | M171: 地理科学 | N171: 应届 | O171: 都不有 | P171: 师范类 | Q171: 无 | R171: 无 | S171: 贵州省黔南布依族苗族自治州独山县上司镇打或村茂龙组 | T171: 18375181606 | U171: 罗甸县 | V171: 初中 | W171: 地理 | Y171: 61.8 | Z171: 85.33 | AA171: 75.92 | AB171: 是 | AI171: 中央（特岗计划） | AJ171: 第十四考场 | AK171: 1
A172: 423 | B172: 郑雪林 | C172: ld20200590 | D172: ld2020423 | E172: 男 | F172: 汉族 | G172: 1993-10-16 | H172: 群众 | I172: 522128199310167516 | J172: 大学本科 | L172: 六盘水师范学院 | M172: 地理科学 | N172: 往届 | O172: 都不有 | P172: 师范类 | Q172: 有 | R172: 初级中学教师资格 | S172: 贵州省遵义市湄潭县 | T172: 18785265497 | U172: 罗甸县 | V172: 初中 | W172: 地理 | Y172: 59.0 | Z172: 86.12 | AA172: 75.27 | AI172: 中央（特岗计划） | AJ172: 第十四考场 | AK172: 1
A173: 429 | B173: 刘永亮 | C173: ld20200587 | D173: ld2020429 | E173: 男 | F173: 毛南族 | G173: 1995-09-09 | H173: 群众 | I173: 522727199509093012 | J173: 大学本科 | L173: 白城师范学院 | M173: 地理科学 | N173: 往届 | O173: 都不有 | P173: 师范类 | Q173: 有 | R173: 高级中学教师资格 | S173: 贵州省黔南布依族苗族自治州平塘县 | T173: 18375232015 | U173: 罗甸县 | V173: 初中 | W173: 地理 | Y173: 57.5 | Z173: 85.82 | AA173: 74.49 | AI173: 中央（特岗计划） | AJ173: 第十四考场 | AK173: 1
A174: 424 | B174: 杨清磊 | C174: ld20200563 | D174: ld2020424 | E174: 男 | F174: 布依族 | G174: 1991-09-15 | H174: 群众 | I174: 522731199109159013 | J174: 大学本科 | L174: 黔南民族师范学院 | M174: 地理科学 | N174: 往届 | O174: 都不有 | P174: 师范类 | Q174: 有 | R174: 高级中学教师资格 | S174: 贵州省黔南布依族苗族自治州惠水县平贡村四组 | T174: 18385481258 | U174: 罗甸县 | V174: 初中 | W174: 地理 | Y174: 56.8 | Z174: 85.00 | AA174: 73.72 | AI174: 中央（特岗计划） | AJ174: 第十四考场 | AK174: 1
A175: 428 | B175: 刘进萍 | C175: ld20200581 | D175: ld2020428 | E175: 女 | F175: 汉族 | G175: 1997-10-09 | H175: 共青团员 | I175: 520202199710093026 | J175: 大学本科 | L175: 兴义民族师范学院 | M175: 人文地理与城乡规划 | N175: 往届 | O175: 都不有 | P175: 非师范类 | Q175: 有 | R175: 高级中学教师资格 | S175: 贵州省盘县红果镇蛾螂铺村二组 | T175: 18296013830 | U175: 罗甸县 | V175: 初中 | W175: 地理 | Y175: 55.5 | Z175: 85.63 | AA175: 73.58 | AI175: 中央（特岗计划） | AJ175: 第十四考场 | AK175: 1
A176: 426 | B176: 李时芬 | C176: ld20200568 | D176: ld2020426 | E176: 女 | F176: 布依族 | G176: 1991-11-02 | H176: 中共党员 | I176: 522701199111020047 | J176: 大学本科 | L176: 赣南师范学院 | M176: 地理科学 | N176: 往届 | O176: 都不有 | P176: 师范类 | Q176: 有 | R176: 高级中学教师资格 | S176: 贵州省黔南布依族苗族自治州都匀市广惠辖区凤凰村一组6号 | T176: 18285473609 | U176: 罗甸县 | V176: 初中 | W176: 地理 | Y176: 53.8 | Z176: 85.67 | AA176: 72.92 | AI176: 中央（特岗计划） | AJ176: 第十四考场 | AK176: 1
A177: 547 | B177: 唐登蓉 | C177: ld20200953 | D177: ld2020547 | E177: 女 | F177: 汉族 | G177: 1996-11-08 | H177: 共青团员 | I177: 522728199611080628 | J177: 大学本科 | L177: 湖南人文科学学院 | M177: 舞蹈编导 | N177: 往届 | O177: 建档立卡贫困户家庭毕业生 | P177: 非师范类 | Q177: 否 | R177: 无 | S177: 贵州省黔南布依族苗族自治州罗甸县 | T177: 17742581028 | U177: 罗甸县 | V177: 小学 | W177: 综合 | Y177: 72.0 | Z177: 87.00 | AA177: 81.00 | AB177: 是 | AI177: 中央（特岗计划） | AJ177: 第十七考场 | AK177: 2
A178: 546 | B178: 黄太芬 | C178: ld20200951 | D178: ld2020546 | E178: 女 | F178: 布依族 | G178: 1997-03-06 | H178: 中共党员 | I178: 522728199703060341 | J178: 大学本科 | L178: 六盘水师范学院 | M178: 美术学 | N178: 应届 | O178: 建档立卡贫困户家庭毕业生 | P178: 师范类 | Q178: 否 | R178: 无 | S178: 贵州省黔南布依族苗族自治州罗甸县 | T178: 18385667540 | U178: 罗甸县 | V178: 小学 | W178: 综合 | Y178: 63.0 | Z178: 85.27 | AA178: 76.36 | AB178: 是 | AI178: 中央（特岗计划） | AJ178: 第十七考场 | AK178: 2
A179: 541 | B179: 何正分 | C179: ld20200933 | D179: ld2020541 | E179: 女 | F179: 布依族 | G179: 1993-03-23 | H179: 共青团员 | I179: 522326199303231485 | J179: 大学本科 | L179: 兴义民族师范学院 | M179: 汉语言文学 | N179: 应届 | O179: 建档立卡贫困户家庭毕业生 | P179: 师范类 | Q179: 否 | R179: 无 | S179: 贵州省黔西南布依族苗族自治州望谟县 | T179: 18296045482 | U179: 罗甸县 | V179: 小学 | W179: 综合 | Y179: 65.0 | Z179: 83.90 | AA179: 76.34 | AB179: 是 | AI179: 中央（特岗计划） | AJ179: 第十七考场 | AK179: 2
A180: 548 | B180: 方小条 | C180: ld20200954 | D180: ld2020548 | E180: 女 | F180: 汉族 | G180: 1997-10-10 | H180: 共青团员 | I180: 522728199710105720 | J180: 大学本科 | L180: 广东技术师范大学 | M180: 服装与服饰设计 | N180: 应届 | O180: 建档立卡贫困户家庭毕业生 | P180: 非师范类 | Q180: 否 | R180: 无 | S180: 贵州省黔南布依族苗族自治州罗甸县 | T180: 13226455948 | U180: 罗甸县 | V180: 小学 | W180: 综合 | Y180: 63.0 | Z180: 85.10 | AA180: 76.26 | AB180: 是 | AI180: 中央（特岗计划） | AJ180: 第十七考场 | AK180: 2
A181: 542 | B181: 杨良雪 | C181: ld20200936 | D181: ld2020542 | E181: 女 | F181: 布依族 | G181: 1997-11-20 | H181: 共青团员 | I181: 522727199711200328 | J181: 大学本科 | L181: 安顺学院 | M181: 秘书学 | N181: 应届 | O181: 建档立卡贫困户家庭毕业生 | P181: 非师范类 | Q181: 否 | R181: 无 | S181: 贵州省黔南布依族苗族自治州平塘县平舟镇苗攀村下院组 | T181: 18385485495 | U181: 罗甸县 | V181: 小学 | W181: 综合 | Y181: 56.0 | Z181: 85.70 | AA181: 73.82 | AB181: 是 | AI181: 中央（特岗计划） | AJ181: 第十七考场 | AK181: 2
A182: 549 | B182: 罗小朵 | C182: ld20200901 | D182: ld2020549 | E182: 女 | F182: 布依族 | G182: 1994-06-08 | H182: 共青团员 | I182: 522728199406080282 | J182: 大学本科 | L182: 贵州民族大学 | M182: 中国少数民族语言文学 | N182: 往届 | O182: 建档立卡贫困户家庭毕业生 | P182: 非师范类 | Q182: 否 | R182: 无 | S182: 贵州省黔南布依族苗族自治州罗甸县龙坪镇八二村坡头组28号 | T182: 18285010524 | U182: 罗甸县 | V182: 小学 | W182: 综合 | Y182: 58.5 | Z182: 84.03 | AA182: 73.82 | AI182: 中央（特岗计划） | AJ182: 第十七考场 | AK182: 2
A183: 544 | B183: 韦小凤 | C183: ld20200948 | D183: ld2020544 | E183: 女 | F183: 布依族 | G183: 1995-04-02 | H183: 共青团员 | I183: 522728199504026925 | J183: 大专 | L183: 黔南民族幼儿师范高等专科学校 | M183: 语文教育 | N183: 往届 | O183: 建档立卡贫困户家庭毕业生 | P183: 师范类 | Q183: 是 | R183: 小学教师资格 | S183: 贵州省黔南布依族苗族自治州罗甸县 | T183: 18785458955 | U183: 罗甸县 | V183: 小学 | W183: 综合 | Y183: 55.5 | Z183: 85.40 | AA183: 73.44 | AI183: 中央（特岗计划） | AJ183: 第十七考场 | AK183: 2
A184: 540 | B184: 欧来勇 | C184: ld20200912 | D184: ld2020540 | E184: 男 | F184: 汉族 | G184: 1998-09-01 | H184: 共青团员 | I184: 522526199809011210 | J184: 大学本科 | L184: 贵州师范学院 | M184: 应用心理学 | N184: 应届 | O184: 建档立卡贫困户家庭毕业生 | P184: 师范类 | Q184: 否 | R184: 无 | S184: 贵州省安顺市平坝区 | T184: 18275133491 | U184: 罗甸县 | V184: 小学 | W184: 综合 | Y184: 52.5 | Z184: 85.30 | AA184: 72.18 | AI184: 中央（特岗计划） | AJ184: 第十七考场 | AK184: 2
A185: 538 | B185: 卢熙茶 | C185: ld20200908 | D185: ld2020538 | E185: 男 | F185: 汉族 | G185: 1998-10-07 | H185: 共青团员 | I185: 522728199810077536 | J185: 大学本科 | L185: 贵州大学明德学院 | M185: 数字媒体艺术 | N185: 应届 | O185: 建档立卡贫困户家庭毕业生 | P185: 非师范类 | Q185: 否 | R185: 无 | S185: 贵州省黔南布依族苗族自治州罗甸县 | T185: 15185546017 | U185: 罗甸县 | V185: 小学 | W185: 综合 | Y185: 53.0 | Z185: 84.90 | AA185: 72.14 | AI185: 中央（特岗计划） | AJ185: 第十七考场 | AK185: 2
A186: 545 | B186: 蒙湾 | C186: ld20200949 | D186: ld2020545 | E186: 女 | F186: 布依族 | G186: 1994-12-20 | H186: 群众 | I186: 522728199412206021 | J186: 大学本科 | L186: 贵州师范学院 | M186: 计算机科学与技术 | N186: 往届 | O186: 建档立卡贫困户家庭毕业生 | P186: 师范类 | Q186: 是 | R186: 高级中学教师资格 | S186: 贵州省黔南布依族苗族自治州罗甸县罗悃镇和谐家园 | T186: 18285115286 | U186: 罗甸县 | V186: 小学 | W186: 综合 | Y186: 53.5 | Z186: 83.70 | AA186: 71.62 | AI186: 中央（特岗计划） | AJ186: 第十七考场 | AK186: 2
A187: 543 | B187: 蒲开莲 | C187: ld20200942 | D187: ld2020543 | E187: 女 | F187: 汉族 | G187: 1994-03-12 | H187: 中共党员 | I187: 522728199403122723 | J187: 大学本科 | L187: 安顺学院 | M187: 社会体育指导与管理 | N187: 往届 | O187: 建档立卡贫困户家庭毕业生 | P187: 师范类 | Q187: 是 | R187: 高级中学教师资格 | S187: 贵州省黔南布依族苗族自治州罗甸县逢亭镇新光村三组36号 | T187: 18785370748 | U187: 罗甸县 | V187: 小学 | W187: 综合 | Y187: 52.5 | Z187: 83.57 | AA187: 71.14 | AI187: 中央（特岗计划） | AJ187: 第十七考场 | AK187: 2
A188: 539 | B188: 杨乾芳 | C188: ld20200911 | D188: ld2020539 | E188: 女 | F188: 汉族 | G188: 1998-02-23 | H188: 共青团员 | I188: 522725199802235822 | J188: 大学本科 | L188: 黔南民族师范学院 | M188: 物联网工程 | N188: 应届 | O188: 建档立卡贫困户家庭毕业生 | P188: 非师范类 | Q188: 否 | R188: 无 | S188: 贵州省黔南布依族苗族自治州瓮安县 | T188: 18375134537 | U188: 罗甸县 | V188: 小学 | W188: 综合 | Y188: 54.0 | Z188: 82.53 | AA188: 71.12 | AI188: 中央（特岗计划） | AJ188: 第十七考场 | AK188: 2
A189: 450 | B189: 王梦园 | C189: ld20200649 | D189: ld2020450 | E189: 女 | F189: 布依族 | G189: 1996-09-23 | H189: 共青团员 | I189: 522728199609230025 | J189: 大学本科 | L189: 安顺学院 | M189: 思想政治教育（法制教育方向） | N189: 往届 | O189: 都不是 | P189: 师范类 | Q189: 是 | R189: 高级中学教师资格 | S189: 贵州省黔南布依族苗族自治州罗甸县龙坪镇电力公司宿舍 | T189: 18334050408 | U189: 罗甸县 | V189: 小学 | W189: 政治 | Y189: 65.5 | Z189: 86.97 | AA189: 78.38 | AB189: 是 | AI189: 中央（特岗计划） | AJ189: 第十四考场 | AK189: 2
A190: 453 | B190: 杨国霞 | C190: ld20200654 | D190: ld2020453 | E190: 女 | F190: 布依族 | G190: 1995-08-16 | H190: 共青团员 | I190: 522728199508165121 | J190: 大学本科 | L190: 贵州师范学院 | M190: 思想政治教育（社会管理） | N190: 往届 | O190: 都不是 | P190: 师范类 | Q190: 是 | R190: 高级中学教师资格 | S190: 贵州省黔南布依族苗族自治州罗甸县 | T190: 13314449149 | U190: 罗甸县 | V190: 小学 | W190: 政治 | Y190: 61.3 | Z190: 87.74 | AA190: 77.16 | AB190: 是 | AI190: 中央（特岗计划） | AJ190: 第十五考场 | AK190: 2
A191: 452 | B191: 肖艳飞 | C191: ld20200652 | D191: ld2020452 | E191: 女 | F191: 仡佬族 | G191: 1996-10-22 | H191: 中共党员 | I191: 522126199610221542 | J191: 大学本科 | L191: 遵义师范学院 | M191: 思想政治教育 | N191: 应届 | O191: 都不是 | P191: 师范类 | Q191: 否 | R191: 无 | S191: 贵州省遵义市务川仡佬族苗族自治县 | T191: 15120129970 | U191: 罗甸县 | V191: 小学 | W191: 政治 | Y191: 62.0 | Z191: 86.52 | AA191: 76.71 | AB191: 是 | AI191: 中央（特岗计划） | AJ191: 第十四考场 | AK191: 2
A192: 449 | B192: 陈菲 | C192: ld20200648 | D192: ld2020449 | E192: 女 | F192: 布依族 | G192: 1998-01-08 | H192: 共青团员 | I192: 522731199801087589 | J192: 大学本科 | L192: 贵州师范大学 | M192: 思想政治教育 | N192: 应届 | O192: 都不是 | P192: 师范类 | Q192: 否 | R192: 无 | S192: 贵州省黔南布依族苗族自治州惠水县断杉镇花山村小寨组 | T192: 18798257350 | U192: 罗甸县 | V192: 小学 | W192: 政治 | Y192: 60.0 | Z192: 87.00 | AA192: 76.20 | AB192: 是 | AI192: 中央（特岗计划） | AJ192: 第十四考场 | AK192: 2
A193: 448 | B193: 叶茂青 | C193: ld20200647 | D193: ld2020448 | E193: 女 | F193: 汉族 | G193: 1994-06-24 | H193: 共青团员 | I193: 522723199406240029 | J193: 大学本科 | L193: 贵州师范大学求是学院 | M193: 思想政治教育 | N193: 往届 | O193: 都不是 | P193: 师范类 | Q193: 是 | R193: 高级中学教师资格 | S193: 贵州省黔南布依族苗族自治州贵定县 | T193: 15185531091 | U193: 罗甸县 | V193: 小学 | W193: 政治 | Y193: 59.3 | Z193: 86.83 | AA193: 75.82 | AB193: 是 | AI193: 中央（特岗计划） | AJ193: 第十四考场 | AK193: 2
A194: 447 | B194: 罗爱先 | C194: ld20200645 | D194: ld2020447 | E194: 女 | F194: 布依族 | G194: 1993-01-20 | H194: 共青团员 | I194: 522728199301205448 | J194: 大学本科 | L194: 铜仁学院 | M194: 思想政治教育 | N194: 往届 | O194: 都不是 | P194: 师范类 | Q194: 否 | R194: 无 | S194: 贵州省黔南布依族苗族自治州罗甸县 | T194: 18184160652 | U194: 罗甸县 | V194: 小学 | W194: 政治 | Y194: 59.0 | Z194: 86.95 | AA194: 75.77 | AI194: 中央（特岗计划） | AJ194: 第十四考场 | AK194: 2
A195: 446 | B195: 李昌莲 | C195: ld20200644 | D195: ld2020446 | E195: 女 | F195: 布依族 | G195: 1996-06-18 | H195: 共青团员 | I195: 522728199606181248 | J195: 大学本科 | L195: 黔南民族师范学院 | M195: 思想政治教育 | N195: 往届 | O195: 都不是 | P195: 师范类 | Q195: 否 | R195: 无 | S195: 贵州省黔南布依族苗族自治州罗甸县边阳镇罗木村 | T195: 18375144543 | U195: 罗甸县 | V195: 小学 | W195: 政治 | Y195: 59.5 | Z195: 86.56 | AA195: 75.74 | AI195: 中央（特岗计划） | AJ195: 第十四考场 | AK195: 2
A196: 445 | B196: 田景章 | C196: ld20200643 | D196: ld2020445 | E196: 男 | F196: 汉族 | G196: 1995-08-15 | H196: 共青团员 | I196: 522326199508151235 | J196: 大专 | L196: 四川阿坝师范学院 | M196: 思想政治教育 | N196: 往届 | O196: 都不是 | P196: 师范类 | Q196: 是 | R196: 初级中学教师资格 | S196: 贵州省黔西南布依族苗族自治州望谟县 | T196: 19184338137 | U196: 罗甸县 | V196: 小学 | W196: 政治 | Y196: 61.0 | Z196: 85.39 | AA196: 75.63 | AI196: 中央（特岗计划） | AJ196: 第十四考场 | AK196: 2
A197: 451 | B197: 田茂婷 | C197: ld20200650 | D197: ld2020451 | E197: 女 | F197: 汉族 | G197: 1996-08-02 | H197: 共青团员 | I197: 522731199608027584 | J197: 大学本科 | L197: 贵州师范大学 | M197: 思想政治教育 | N197: 应届 | O197: 都不是 | P197: 师范类 | Q197: 否 | R197: 无 | S197: 贵州省黔南布依族苗族自治州惠水县 | T197: 18375154023 | U197: 罗甸县 | V197: 小学 | W197: 政治 | Y197: 59.5 | Z197: 85.64 | AA197: 75.18 | AI197: 中央（特岗计划） | AJ197: 第十四考场 | AK197: 2
A198: 444 | B198: 丰元婷 | C198: ld20200642 | D198: ld2020444 | E198: 女 | F198: 汉族 | G198: 1993-04-14 | H198: 群众 | I198: 522731199304146904 | J198: 大学本科 | L198: 黔南民族师范学院 | M198: 思想政治教育 | N198: 往届 | O198: 都不是 | P198: 师范类 | Q198: 是 | R198: 高级中学教师资格 | S198: 贵州省黔南布依族苗族自治州惠水县 | T198: 13885470125 | U198: 罗甸县 | V198: 小学 | W198: 政治 | Y198: 54.3 | Z198: 86.59 | AA198: 73.67 | AI198: 中央（特岗计划） | AJ198: 第十四考场 | AK198: 2
A199: 454 | B199: 刘绍丰 | C199: ld20200655 | D199: ld2020454 | E199: 女 | F199: 汉族 | G199: 1992-08-19 | H199: 共青团员 | I199: 522725199208191927 | J199: 大学本科 | L199: 六盘水师范学院 | M199: 思想政治教育 | N199: 往届 | O199: 都不是 | P199: 师范类 | Q199: 是 | R199: 高级中学教师资格 | S199: 贵州省黔南布依族苗族自治州瓮安县 | T199: 18216630250 | U199: 罗甸县 | V199: 小学 | W199: 政治 | Y199: 58.5 | Z199: 83.69 | AA199: 73.61 | AI199: 中央（特岗计划） | AJ199: 第十五考场 | AK199: 2
A200: 443 | B200: 岑镓倩 | C200: ld20200656 | D200: ld2020443 | E200: 女 | F200: 布依族 | G200: 1995-07-13 | H200: 共青团员 | I200: 522731199507136140 | J200: 大学本科 | L200: 兴义民族师范学院 | M200: 思想政治教育 | N200: 应届 | O200: 都不是 | P200: 师范类 | Q200: 否 | R200: 无 | S200: 贵州省黔南布依族苗族自治州惠水县雅水镇雅水村新寨组15号 | T200: 18685492621 | U200: 罗甸县 | V200: 小学 | W200: 政治 | Y200: 51.3 | Z200: 86.35 | AA200: 72.33 | AI200: 中央（特岗计划） | AJ200: 第十四考场 | AK200: 2
... 554 more rows

Sheet 2020年特岗教师招聘体检合格人员名单
A1: 附表4
A2: 罗甸县2020年特岗教师招聘体检合格人员名单
A3: 序号 | B3: 姓名 | C3: 面试准考证 | D3: 身份证号 | E3: 报考县 | F3: 报考学段 | G3: 报考学科 | H3: 体检结果 | I3: 备注
A4: 1 | B4: 张潇银 | C4: ld2020534 | D4: 522630199605160425 | E4: 罗甸县 | F4: 初中 | G4: 综合 | H4: 合格
A5: 2 | B5: 覃文耐 | C5: ld2020531 | D5: 522732199507051020 | E5: 罗甸县 | F5: 初中 | G5: 综合 | H5: 合格
A6: 3 | B6: 卢丹 | C6: ld2020535 | D6: 522728199603291548 | E6: 罗甸县 | F6: 初中 | G6: 综合 | H6: 放弃
A7: 4 | B7: 韦泽慧 | C7: ld2020431 | D7: 522726199503183520 | E7: 罗甸县 | F7: 初中 | G7: 政治 | H7: 合格
A8: 5 | B8: 田浪 | C8: ld2020436 | D8: 52222719950811761X | E8: 罗甸县 | F8: 初中 | G8: 政治 | H8: 放弃
A9: 6 | B9: 岑泽青 | C9: ld2020440 | D9: 522728199709093320 | E9: 罗甸县 | F9: 初中 | G9: 政治 | H9: 合格
A10: 7 | B10: 韦慢 | C10: ld2020434 | D10: 522326199708301226 | E10: 罗甸县 | F10: 初中 | G10: 政治 | H10: 放弃
A11: 8 | B11: 冉孟州 | C11: ld2020439 | D11: 522727199504223615 | E11: 罗甸县 | F11: 初中 | G11: 政治 | H11: 合格
A12: 9 | B12: 杨雨欣 | C12: ld2020021 | D12: 522728199701015723 | E12: 罗甸县 | F12: 初中 | G12: 语文 | H12: 合格
A13: 10 | B13: 岑光珍 | C13: ld2020026 | D13: 52272619981016192X | E13: 罗甸县 | F13: 初中 | G13: 语文 | H13: 合格
A14: 11 | B14: 范玲玲 | C14: ld2020017 | D14: 522401199505075140 | E14: 罗甸县 | F14: 初中 | G14: 语文 | H14: 合格
A15: 12 | B15: 刘维琴 | C15: ld2020006 | D15: 522728199708281522 | E15: 罗甸县 | F15: 初中 | G15: 语文 | H15: 放弃
A16: 13 | B16: 姚元青 | C16: ld2020011 | D16: 522728199704065443 | E16: 罗甸县 | F16: 初中 | G16: 语文 | H16: 合格
A17: 14 | B17: 潘延敏 | C17: ld2020016 | D17: 522727199702154227 | E17: 罗甸县 | F17: 初中 | G17: 语文 | H17: 合格
A18: 15 | B18: 李思瑶 | C18: ld2020012 | D18: 522731199711161300 | E18: 罗甸县 | F18: 初中 | G18: 语文 | H18: 合格
A19: 16 | B19: 罗先鸦 | C19: ld2020013 | D19: 522728199510223925 | E19: 罗甸县 | F19: 初中 | G19: 语文 | H19: 合格
A20: 17 | B20: 柘鸿 | C20: ld2020007 | D20: 50022419980224333X | E20: 罗甸县 | F20: 初中 | G20: 语文 | H20: 合格
A21: 18 | B21: 姚元美 | C21: ld2020027 | D21: 522725199802262425 | E21: 罗甸县 | F21: 初中 | G21: 语文 | H21: 合格
A22: 19 | B22: 卢龙菊 | C22: ld2020019 | D22: 522731199505250927 | E22: 罗甸县 | F22: 初中 | G22: 语文 | H22: 合格
A23: 20 | B23: 罗福火 | C23: ld2020298 | D23: 522326199610151063 | E23: 罗甸县 | F23: 初中 | G23: 英语 | H23: 合格
A24: 21 | B24: 莫树凤 | C24: ld2020294 | D24: 522726199212254480 | E24: 罗甸县 | F24: 初中 | G24: 英语 | H24: 合格
A25: 22 | B25: 黎荣姣 | C25: ld2020309 | D25: 522726199802080943 | E25: 罗甸县 | F25: 初中 | G25: 英语 | H25: 合格
A26: 23 | B26: 罗开分 | C26: ld2020306 | D26: 522731199703028323 | E26: 罗甸县 | F26: 初中 | G26: 英语 | H26: 合格
A27: 24 | B27: 刘春燕 | C27: ld2020303 | D27: 522725199608175248 | E27: 罗甸县 | F27: 初中 | G27: 英语 | H27: 合格
A28: 25 | B28: 卢菊珍 | C28: ld2020292 | D28: 522731199406249023 | E28: 罗甸县 | F28: 初中 | G28: 英语 | H28: 合格
A29: 26 | B29: 李小会 | C29: ld2020299 | D29: 522731199211161283 | E29: 罗甸县 | F29: 初中 | G29: 英语 | H29: 合格
A30: 27 | B30: 吴思钰 | C30: ld2020302 | D30: 522728199708200024 | E30: 罗甸县 | F30: 初中 | G30: 英语 | H30: 合格
A31: 28 | B31: 蒙娟 | C31: ld2020289 | D31: 522326199811101628 | E31: 罗甸县 | F31: 初中 | G31: 英语 | H31: 合格
A32: 29 | B32: 帅祥鲜 | C32: ld2020288 | D32: 522727199802033924 | E32: 罗甸县 | F32: 初中 | G32: 英语 | H32: 合格
A33: 30 | B33: 涂玉琳 | C33: ld2020301 | D33: 522727199711102429 | E33: 罗甸县 | F33: 初中 | G33: 英语 | H33: 合格
A34: 31 | B34: 付静扬 | C34: ld2020296 | D34: 522728199804296388 | E34: 罗甸县 | F34: 初中 | G34: 英语 | H34: 合格
A35: 32 | B35: 郑煜 | C35: ld2020308 | D35: 522725199712144046 | E35: 罗甸县 | F35: 初中 | G35: 英语 | H35: 放弃
A36: 33 | B36: 岑辉姣 | C36: ld2020304 | D36: 522728199712235123 | E36: 罗甸县 | F36: 初中 | G36: 英语 | H36: 合格
A37: 34 | B37: 熊谣 | C37: ld2020305 | D37: 522725199612290628 | E37: 罗甸县 | F37: 初中 | G37: 英语 | H37: 放弃
A38: 35 | B38: 王爽 | C38: ld2020456 | D38: 522125199608290059 | E38: 罗甸县 | F38: 初中 | G38: 心理健康 | H38: 合格
A39: 36 | B39: 罗文艳 | C39: ld2020457 | D39: 522726199504111967 | E39: 罗甸县 | F39: 初中 | G39: 心理健康 | H39: 合格
A40: 37 | B40: 罗飞 | C40: ld2020455 | D40: 522731199704037045 | E40: 罗甸县 | F40: 初中 | G40: 心理健康 | H40: 放弃
A41: 38 | B41: 何则莹 | C41: ld2020411 | D41: 522725199408074346 | E41: 罗甸县 | F41: 初中 | G41: 物理 | H41: 合格
A42: 39 | B42: 罗万海 | C42: ld2020414 | D42: 522326199809181657 | E42: 罗甸县 | F42: 初中 | G42: 物理 | H42: 合格
A43: 40 | B43: 陈妃 | C43: ld2020415 | D43: 522226199608140423 | E43: 罗甸县 | F43: 初中 | G43: 物理 | H43: 合格
A44: 41 | B44: 王正旺 | C44: ld2020416 | D44: 522732199212114215 | E44: 罗甸县 | F44: 初中 | G44: 物理 | H44: 合格
A45: 42 | B45: 韦春兰 | C45: ld2020422 | D45: 522732199601176962 | E45: 罗甸县 | F45: 初中 | G45: 物理 | H45: 放弃
A46: 43 | B46: 贺家勇 | C46: ld2020173 | D46: 522725199608087117 | E46: 罗甸县 | F46: 初中 | G46: 数学 | H46: 合格
A47: 44 | B47: 王凡军 | C47: ld2020178 | D47: 522326199501011811 | E47: 罗甸县 | F47: 初中 | G47: 数学 | H47: 合格
A48: 45 | B48: 罗桂梅 | C48: ld2020166 | D48: 522326199805160824 | E48: 罗甸县 | F48: 初中 | G48: 数学 | H48: 合格
A49: 46 | B49: 张文才 | C49: ld2020168 | D49: 522630199401110653 | E49: 罗甸县 | F49: 初中 | G49: 数学 | H49: 合格
A50: 47 | B50: 杨健康 | C50: ld2020164 | D50: 52272919981212091X | E50: 罗甸县 | F50: 初中 | G50: 数学 | H50: 合格
A51: 48 | B51: 何之林 | C51: ld2020171 | D51: 52222719961116721X | E51: 罗甸县 | F51: 初中 | G51: 数学 | H51: 放弃
A52: 49 | B52: 韦万里 | C52: ld2020177 | D52: 522326199607250810 | E52: 罗甸县 | F52: 初中 | G52: 数学 | H52: 合格
A53: 50 | B53: 王交琴 | C53: ld2020189 | D53: 52232619961109104X | E53: 罗甸县 | F53: 初中 | G53: 数学 | H53: 合格
A54: 51 | B54: 杨本华 | C54: ld2020183 | D54: 522731199602062178 | E54: 罗甸县 | F54: 初中 | G54: 数学 | H54: 合格
A55: 52 | B55: 吴老胡 | C55: ld2020162 | D55: 522732199810031014 | E55: 罗甸县 | F55: 初中 | G55: 数学 | H55: 合格
A56: 53 | B56: 韦帮文 | C56: ld2020180 | D56: 522326199510280052 | E56: 罗甸县 | F56: 初中 | G56: 数学 | H56: 合格
A57: 54 | B57: 彭方吉 | C57: ld2020169 | D57: 522724199503095739 | E57: 罗甸县 | F57: 初中 | G57: 数学 | H57: 合格
A58: 55 | B58: 胡思会 | C58: ld2020175 | D58: 520203199501026122 | E58: 罗甸县 | F58: 初中 | G58: 数学 | H58: 合格
A59: 56 | B59: 余江 | C59: ld2020191 | D59: 522227199607271233 | E59: 罗甸县 | F59: 初中 | G59: 数学 | H59: 放弃
A60: 57 | B60: 陈小艳 | C60: ld2020185 | D60: 522728199601060041 | E60: 罗甸县 | F60: 初中 | G60: 数学 | H60: 合格
A61: 58 | B61: 罗锦学 | C61: ld2020170 | D61: 522326199708162836 | E61: 罗甸县 | F61: 初中 | G61: 数学 | H61: 放弃
A62: 59 | B62: 杨畅畅 | C62: ld2020176 | D62: 522322199506202419 | E62: 罗甸县 | F62: 初中 | G62: 数学 | H62: 合格
A63: 60 | B63: 黄热飞 | C63: ld2020489 | D63: 522728199711070064 | E63: 罗甸县 | F63: 初中 | G63: 生物 | H63: 合格
A64: 61 | B64: 罗季美 | C64: ld2020495 | D64: 522701199804246268 | E64: 罗甸县 | F64: 初中 | G64: 生物 | H64: 合格
A65: 62 | B65: 兰方玉 | C65: ld2020494 | D65: 522724199310082827 | E65: 罗甸县 | F65: 初中 | G65: 生物 | H65: 合格
A66: 63 | B66: 黄宁 | C66: ld2020480 | D66: 522728199709123921 | E66: 罗甸县 | F66: 初中 | G66: 历史 | H66: 合格
A67: 64 | B67: 熊方佩 | C67: ld2020477 | D67: 522701199411292829 | E67: 罗甸县 | F67: 初中 | G67: 历史 | H67: 合格
A68: 65 | B68: 赵永雪 | C68: ld2020475 | D68: 522731199802208362 | E68: 罗甸县 | F68: 初中 | G68: 历史 | H68: 合格
A69: 66 | B69: 罗朝东 | C69: ld2020485 | D69: 522728199512090046 | E69: 罗甸县 | F69: 初中 | G69: 历史 | H69: 合格
A70: 67 | B70: 邹学训 | C70: ld2020481 | D70: 522427199305207456 | E70: 罗甸县 | F70: 初中 | G70: 历史 | H70: 合格
A71: 68 | B71: 徐巧 | C71: ld2020526 | D71: 522530199810162926 | E71: 罗甸县 | F71: 初中 | G71: 化学 | H71: 合格
A72: 69 | B72: 吴娜 | C72: ld2020528 | D72: 522728199710024525 | E72: 罗甸县 | F72: 初中 | G72: 化学 | H72: 合格
A73: 70 | B73: 莫燕 | C73: ld2020512 | D73: 522732199603086127 | E73: 罗甸县 | F73: 初中 | G73: 化学 | H73: 合格
A74: 71 | B74: 陈颜 | C74: ld2020510 | D74: 522326199608261626 | E74: 罗甸县 | F74: 初中 | G74: 化学 | H74: 合格
A75: 72 | B75: 吴祖军 | C75: ld2020508 | D75: 522726199805171912 | E75: 罗甸县 | F75: 初中 | G75: 化学 | H75: 合格
A76: 73 | B76: 韦小娘 | C76: ld2020516 | D76: 522732199802017327 | E76: 罗甸县 | F76: 初中 | G76: 化学 | H76: 合格
A77: 74 | B77: 金庆谈 | C77: ld2020509 | D77: 522635199607083218 | E77: 罗甸县 | F77: 初中 | G77: 化学 | H77: 放弃
A78: 75 | B78: 黄国秀 | C78: ld2020524 | D78: 522326199403171520 | E78: 罗甸县 | F78: 初中 | G78: 化学 | H78: 合格
A79: 76 | B79: 杨金 | C79: ld2020427 | D79: 522731199502034153 | E79: 罗甸县 | F79: 初中 | G79: 地理 | H79: 合格
A80: 77 | B80: 陈奇 | C80: ld2020425 | D80: 52273119941104759X | E80: 罗甸县 | F80: 初中 | G80: 地理 | H80: 合格
A81: 78 | B81: 刘秀娟 | C81: ld2020430 | D81: 522726199608192829 | E81: 罗甸县 | F81: 初中 | G81: 地理 | H81: 合格
A82: 79 | B82: 唐登蓉 | C82: ld2020547 | D82: 522728199611080628 | E82: 罗甸县 | F82: 小学 | G82: 综合 | H82: 合格
A83: 80 | B83: 黄太芬 | C83: ld2020546 | D83: 522728199703060341 | E83: 罗甸县 | F83: 小学 | G83: 综合 | H83: 合格
A84: 81 | B84: 何正分 | C84: ld2020541 | D84: 522326199303231485 | E84: 罗甸县 | F84: 小学 | G84: 综合 | H84: 合格
A85: 82 | B85: 方小条 | C85: ld2020548 | D85: 522728199710105720 | E85: 罗甸县 | F85: 小学 | G85: 综合 | H85: 合格
A86: 83 | B86: 杨良雪 | C86: ld2020542 | D86: 522727199711200328 | E86: 罗甸县 | F86: 小学 | G86: 综合 | H86: 合格
A87: 84 | B87: 王梦园 | C87: ld2020450 | D87: 522728199609230025 | E87: 罗甸县 | F87: 小学 | G87: 政治 | H87: 合格
A88: 85 | B88: 杨国霞 | C88: ld2020453 | D88: 522728199508165121 | E88: 罗甸县 | F88: 小学 | G88: 政治 | H88: 合格
A89: 86 | B89: 肖艳飞 | C89: ld2020452 | D89: 522126199610221542 | E89: 罗甸县 | F89: 小学 | G89: 政治 | H89: 合格
A90: 87 | B90: 陈菲 | C90: ld2020449 | D90: 522731199801087589 | E90: 罗甸县 | F90: 小学 | G90: 政治 | H90: 合格
A91: 88 | B91: 叶茂青 | C91: ld2020448 | D91: 522723199406240029 | E91: 罗甸县 | F91: 小学 | G91: 政治 | H91: 合格
A92: 89 | B92: 罗嫡嫡 | C92: ld2020057 | D92: 522701199704066526 | E92: 罗甸县 | F92: 小学 | G92: 语文 | H92: 合格
A93: 90 | B93: 黄丽 | C93: ld2020076 | D93: 522728199704150285 | E93: 罗甸县 | F93: 小学 | G93: 语文 | H93: 合格
A94: 91 | B94: 杨莹 | C94: ld2020141 | D94: 522728199702190048 | E94: 罗甸县 | F94: 小学 | G94: 语文 | H94: 合格
A95: 92 | B95: 罗廷志 | C95: ld2020146 | D95: 522727199509204843 | E95: 罗甸县 | F95: 小学 | G95: 语文 | H95: 合格
A96: 93 | B96: 黄光红草 | C96: ld2020142 | D96: 522728199711263624 | E96: 罗甸县 | F96: 小学 | G96: 语文 | H96: 合格
A97: 94 | B97: 帅锡波 | C97: ld2020077 | D97: 522731199311247033 | E97: 罗甸县 | F97: 小学 | G97: 语文 | H97: 合格
A98: 95 | B98: 王修夜 | C98: ld2020061 | D98: 522728199505180043 | E98: 罗甸县 | F98: 小学 | G98: 语文 | H98: 合格
A99: 96 | B99: 陈柔丹 | C99: ld2020040 | D99: 522426199709060845 | E99: 罗甸县 | F99: 小学 | G99: 语文 | H99: 合格
A100: 97 | B100: 杨昌丽 | C100: ld2020140 | D100: 522731199510295249 | E100: 罗甸县 | F100: 小学 | G100: 语文 | H100: 合格
A101: 98 | B101: 罗世春 | C101: ld2020056 | D101: 522326199209103081 | E101: 罗甸县 | F101: 小学 | G101: 语文 | H101: 合格
A102: 99 | B102: 王丽娜 | C102: ld2020081 | D102: 522728199612050025 | E102: 罗甸县 | F102: 小学 | G102: 语文 | H102: 合格
A103: 100 | B103: 李胜琴 | C103: ld2020079 | D103: 522724199510271841 | E103: 罗甸县 | F103: 小学 | G103: 语文 | H103: 合格
A104: 101 | B104: 陈桂桦 | C104: ld2020033 | D104: 522725199504136121 | E104: 罗甸县 | F104: 小学 | G104: 语文 | H104: 合格
A105: 102 | B105: 杨美琴 | C105: ld2020074 | D105: 522326199701103227 | E105: 罗甸县 | F105: 小学 | G105: 语文 | H105: 合格
A106: 103 | B106: 韦晚摇 | C106: ld2020039 | D106: 522326199507230425 | E106: 罗甸县 | F106: 小学 | G106: 语文 | H106: 合格
A107: 104 | B107: 莫银针 | C107: ld2020071 | D107: 522732199308022227 | E107: 罗甸县 | F107: 小学 | G107: 语文 | H107: 合格
A108: 105 | B108: 唐丽 | C108: ld2020100 | D108: 522221199606033227 | E108: 罗甸县 | F108: 小学 | G108: 语文 | H108: 合格
A109: 106 | B109: 朱恕玉 | C109: ld2020102 | D109: 522128199308204023 | E109: 罗甸县 | F109: 小学 | G109: 语文 | H109: 合格
A110: 107 | B110: 刘祖威 | C110: ld2020130 | D110: 522728199506010310 | E110: 罗甸县 | F110: 小学 | G110: 语文 | H110: 合格
A111: 108 | B111: 梁雪婷 | C111: ld2020050 | D111: 522326199612031620 | E111: 罗甸县 | F111: 小学 | G111: 语文 | H111: 合格
A112: 109 | B112: 封明珠 | C112: ld2020083 | D112: 52272419960911474X | E112: 罗甸县 | F112: 小学 | G112: 语文 | H112: 合格
A113: 110 | B113: 黄小蓉 | C113: ld2020113 | D113: 522728199802083629 | E113: 罗甸县 | F113: 小学 | G113: 语文 | H113: 合格
A114: 111 | B114: 陈飞 | C114: ld2020085 | D114: 522728199503102113 | E114: 罗甸县 | F114: 小学 | G114: 语文 | H114: 合格
A115: 112 | B115: 陆香 | C115: ld2020091 | D115: 522326199802091229 | E115: 罗甸县 | F115: 小学 | G115: 语文 | H115: 合格
A116: 113 | B116: 李万燕 | C116: ld2020145 | D116: 522727199510291825 | E116: 罗甸县 | F116: 小学 | G116: 语文 | H116: 合格
A117: 114 | B117: 陆昌蓉 | C117: ld2020048 | D117: 522728199605186047 | E117: 罗甸县 | F117: 小学 | G117: 语文 | H117: 合格
A118: 115 | B118: 王由朵 | C118: ld2020047 | D118: 522728199410260024 | E118: 罗甸县 | F118: 小学 | G118: 语文 | H118: 合格
A119: 116 | B119: 钟丽 | C119: ld2020073 | D119: 522527199610011324 | E119: 罗甸县 | F119: 小学 | G119: 语文 | H119: 合格
A120: 117 | B120: 潘华贵 | C120: ld2020135 | D120: 522726199510182622 | E120: 罗甸县 | F120: 小学 | G120: 语文 | H120: 合格
A121: 118 | B121: 王寿念 | C121: ld2020095 | D121: 522728199901250920 | E121: 罗甸县 | F121: 小学 | G121: 语文 | H121: 合格
A122: 119 | B122: 刘玉婷 | C122: ld2020060 | D122: 520181199904112125 | E122: 罗甸县 | F122: 小学 | G122: 语文 | H122: 放弃
A123: 120 | B123: 李付相 | C123: ld2020086 | D123: 522731199309041298 | E123: 罗甸县 | F123: 小学 | G123: 语文 | H123: 放弃
A124: 121 | B124: 罗娜 | C124: ld2020098 | D124: 522326199612151083 | E124: 罗甸县 | F124: 小学 | G124: 语文 | H124: 合格
A125: 122 | B125: 陈明坤 | C125: ld2020068 | D125: 522727199502134571 | E125: 罗甸县 | F125: 小学 | G125: 语文 | H125: 合格
A126: 123 | B126: 冉懋香 | C126: ld2020049 | D126: 522326199610171646 | E126: 罗甸县 | F126: 小学 | G126: 语文 | H126: 放弃
A127: 124 | B127: 李琴 | C127: ld2020107 | D127: 522726199601174927 | E127: 罗甸县 | F127: 小学 | G127: 语文 | H127: 合格
A128: 125 | B128: 王念念 | C128: ld2020134 | D128: 522325199303230021 | E128: 罗甸县 | F128: 小学 | G128: 语文 | H128: 放弃
A129: 126 | B129: 陆廷娴 | C129: ld2020064 | D129: 52272619961127194X | E129: 罗甸县 | F129: 小学 | G129: 语文 | H129: 合格
A130: 127 | B130: 杨婷 | C130: ld2020067 | D130: 522326199409121444 | E130: 罗甸县 | F130: 小学 | G130: 语文 | H130: 合格
A131: 128 | B131: 王仕英 | C131: ld2020149 | D131: 522326199405102844 | E131: 罗甸县 | F131: 小学 | G131: 语文 | H131: 放弃
A132: 129 | B132: 龙秀巧 | C132: ld2020046 | D132: 522728199712192725 | E132: 罗甸县 | F132: 小学 | G132: 语文 | H132: 合格
A133: 130 | B133: 罗永梅 | C133: ld2020108 | D133: 522225199702062824 | E133: 罗甸县 | F133: 小学 | G133: 语文 | H133: 放弃
A134: 131 | B134: 蒙倩 | C134: ld2020128 | D134: 522326199711260066 | E134: 罗甸县 | F134: 小学 | G134: 语文 | H134: 合格
A135: 132 | B135: 赵敬佩 | C135: ld2020329 | D135: 522728199209242123 | E135: 罗甸县 | F135: 小学 | G135: 英语 | H135: 合格
A136: 133 | B136: 孙庆英 | C136: ld2020373 | D136: 522323199211184440 | E136: 罗甸县 | F136: 小学 | G136: 英语 | H136: 合格
A137: 134 | B137: 苏时娟 | C137: ld2020327 | D137: 522723199503273922 | E137: 罗甸县 | F137: 小学 | G137: 英语 | H137: 合格
A138: 135 | B138: 刘安凤 | C138: ld2020340 | D138: 522725199612210827 | E138: 罗甸县 | F138: 小学 | G138: 英语 | H138: 合格
A139: 136 | B139: 吴文芳 | C139: ld2020348 | D139: 520111199508213048 | E139: 罗甸县 | F139: 小学 | G139: 英语 | H139: 合格
A140: 137 | B140: 马芹芹 | C140: ld2020402 | D140: 520181199204141726 | E140: 罗甸县 | F140: 小学 | G140: 英语 | H140: 合格
A141: 138 | B141: 毛成翠 | C141: ld2020407 | D141: 522325199710232825 | E141: 罗甸县 | F141: 小学 | G141: 英语 | H141: 合格
A142: 139 | B142: 罗玉琳 | C142: ld2020333 | D142: 522731199408032901 | E142: 罗甸县 | F142: 小学 | G142: 英语 | H142: 合格
A143: 140 | B143: 王艺涵 | C143: ld2020311 | D143: 522728199103140081 | E143: 罗甸县 | F143: 小学 | G143: 英语 | H143: 放弃
A144: 141 | B144: 王兴超 | C144: ld2020379 | D144: 522731199512202181 | E144: 罗甸县 | F144: 小学 | G144: 英语 | H144: 合格
A145: 142 | B145: 杨再艳 | C145: ld2020339 | D145: 522725199407134829 | E145: 罗甸县 | F145: 小学 | G145: 英语 | H145: 合格
A146: 143 | B146: 文钞钞 | C146: ld2020335 | D146: 522228199706071647 | E146: 罗甸县 | F146: 小学 | G146: 英语 | H146: 合格
A147: 144 | B147: 吴庭千 | C147: ld2020323 | D147: 522731199503080020 | E147: 罗甸县 | F147: 小学 | G147: 英语 | H147: 合格
A148: 145 | B148: 罗秀秋庆 | C148: ld2020408 | D148: 52273119961020704X | E148: 罗甸县 | F148: 小学 | G148: 英语 | H148: 合格
A149: 146 | B149: 鲁月 | C149: ld2020365 | D149: 522728199804142426 | E149: 罗甸县 | F149: 小学 | G149: 英语 | H149: 合格
A150: 147 | B150: 龙碧亮 | C150: ld2020316 | D150: 522728199606295720 | E150: 罗甸县 | F150: 小学 | G150: 英语 | H150: 合格
A151: 148 | B151: 沈良芳 | C151: ld2020371 | D151: 522326199711151660 | E151: 罗甸县 | F151: 小学 | G151: 英语 | H151: 合格
A152: 149 | B152: 王国庆 | C152: ld2020390 | D152: 522122199308233619 | E152: 罗甸县 | F152: 小学 | G152: 英语 | H152: 合格
A153: 150 | B153: 王春龙 | C153: ld2020393 | D153: 522326199508083017 | E153: 罗甸县 | F153: 小学 | G153: 英语 | H153: 合格
A154: 151 | B154: 凃兴怡 | C154: ld2020405 | D154: 522701199607091025 | E154: 罗甸县 | F154: 小学 | G154: 英语 | H154: 合格
A155: 152 | B155: 谢晓芳 | C155: ld2020374 | D155: 522124199306162020 | E155: 罗甸县 | F155: 小学 | G155: 英语 | H155: 合格
A156: 153 | B156: 韦广珊 | C156: ld2020358 | D156: 522726199510202822 | E156: 罗甸县 | F156: 小学 | G156: 英语 | H156: 合格
A157: 154 | B157: 黄华群 | C157: ld2020391 | D157: 522725199604224823 | E157: 罗甸县 | F157: 小学 | G157: 英语 | H157: 合格
A158: 155 | B158: 黄炉丹 | C158: ld2020384 | D158: 522728199410216365 | E158: 罗甸县 | F158: 小学 | G158: 英语 | H158: 合格
A159: 156 | B159: 王朗妙 | C159: ld2020344 | D159: 522326199301182640 | E159: 罗甸县 | F159: 小学 | G159: 英语 | H159: 合格
A160: 157 | B160: 陈凤 | C160: ld2020312 | D160: 522121199512283246 | E160: 罗甸县 | F160: 小学 | G160: 英语 | H160: 合格
A161: 158 | B161: 刘佳 | C161: ld2020376 | D161: 520181199411124128 | E161: 罗甸县 | F161: 小学 | G161: 英语 | H161: 合格
A162: 159 | B162: 王贵宏 | C162: ld2020368 | D162: 520112199512232520 | E162: 罗甸县 | F162: 小学 | G162: 英语 | H162: 放弃
A163: 160 | B163: 熊裕丹 | C163: ld2020394 | D163: 520111199212261542 | E163: 罗甸县 | F163: 小学 | G163: 英语 | H163: 合格
A164: 161 | B164: 周顺英 | C164: ld2020357 | D164: 522731199402197043 | E164: 罗甸县 | F164: 小学 | G164: 英语 | H164: 合格
A165: 162 | B165: 刘芳 | C165: ld2020382 | D165: 532131199510100949 | E165: 罗甸县 | F165: 小学 | G165: 英语 | H165: 放弃
A166: 163 | B166: 蒙锡修 | C166: ld2020372 | D166: 522326199609272642 | E166: 罗甸县 | F166: 小学 | G166: 英语 | H166: 合格
A167: 164 | B167: 姚飞 | C167: ld2020337 | D167: 522326199709193220 | E167: 罗甸县 | F167: 小学 | G167: 英语 | H167: 放弃
A168: 165 | B168: 王照英 | C168: ld2020347 | D168: 522728199701310343 | E168: 罗甸县 | F168: 小学 | G168: 英语 | H168: 合格
A169: 166 | B169: 蒙焕想 | C169: ld2020356 | D169: 522728199604143627 | E169: 罗甸县 | F169: 小学 | G169: 英语 | H169: 合格
A170: 167 | B170: 周兴敏 | C170: ld2020355 | D170: 522731199504068664 | E170: 罗甸县 | F170: 小学 | G170: 英语 | H170: 合格
A171: 168 | B171: 刘启东 | C171: ld2020381 | D171: 522725199701057131 | E171: 罗甸县 | F171: 小学 | G171: 英语 | H171: 放弃
A172: 169 | B172: 曾鸿 | C172: ld2020359 | D172: 520122199306221225 | E172: 罗甸县 | F172: 小学 | G172: 英语 | H172: 放弃
A173: 170 | B173: 谭乐荣 | C173: ld2020158 | D173: 522725199709186624 | E173: 罗甸县 | F173: 小学 | G173: 信息技术 | H173: 合格
A174: 171 | B174: 张雪 | C174: ld2020151 | D174: 522731199801172900 | E174: 罗甸县 | F174: 小学 | G174: 信息技术 | H174: 合格
A175: 172 | B175: 黄学丽 | C175: ld2020157 | D175: 522728199605056648 | E175: 罗甸县 | F175: 小学 | G175: 信息技术 | H175: 合格
A176: 173 | B176: 刘毅 | C176: ld2020155 | D176: 522122199401296614 | E176: 罗甸县 | F176: 小学 | G176: 信息技术 | H176: 放弃
A177: 174 | B177: 王德辉 | C177: ld2020161 | D177: 52232619930206243X | E177: 罗甸县 | F177: 小学 | G177: 信息技术 | H177: 放弃
A178: 175 | B178: 朱清清 | C178: ld2020465 | D178: 522728199801181518 | E178: 罗甸县 | F178: 小学 | G178: 心理健康 | H178: 合格
A179: 176 | B179: 陈江庆 | C179: ld2020470 | D179: 522129199705023521 | E179: 罗甸县 | F179: 小学 | G179: 心理健康 | H179: 合格
A180: 177 | B180: 刘廷波 | C180: ld2020469 | D180: 522121199603211416 | E180: 罗甸县 | F180: 小学 | G180: 心理健康 | H180: 合格
A181: 178 | B181: 杨宪珠 | C181: ld2020474 | D181: 52273119980108218X | E181: 罗甸县 | F181: 小学 | G181: 心理健康 | H181: 合格
A182: 179 | B182: 雷丽 | C182: ld2020472 | D182: 522124199607282421 | E182: 罗甸县 | F182: 小学 | G182: 心理健康 | H182: 放弃
A183: 180 | B183: 宋守金 | C183: ld2020460 | D183: 522727199502141843 | E183: 罗甸县 | F183: 小学 | G183: 心理健康 | H183: 合格
A184: 181 | B184: 蒙云坤 | C184: ld2020195 | D184: 522326199501161633 | E184: 罗甸县 | F184: 小学 | G184: 数学 | H184: 合格
A185: 182 | B185: 邓天青 | C185: ld2020274 | D185: 522727199811084221 | E185: 罗甸县 | F185: 小学 | G185: 数学 | H185: 合格
A186: 183 | B186: 黄家伴 | C186: ld2020217 | D186: 522326199509192047 | E186: 罗甸县 | F186: 小学 | G186: 数学 | H186: 合格
A187: 184 | B187: 王娇娇 | C187: ld2020222 | D187: 522127199710153029 | E187: 罗甸县 | F187: 小学 | G187: 数学 | H187: 放弃
A188: 185 | B188: 王兴维 | C188: ld2020267 | D188: 52232619970808222X | E188: 罗甸县 | F188: 小学 | G188: 数学 | H188: 合格
A189: 186 | B189: 潘敏 | C189: ld2020254 | D189: 532128199707160728 | E189: 罗甸县 | F189: 小学 | G189: 数学 | H189: 合格
A190: 187 | B190: 杨火进 | C190: ld2020284 | D190: 522731199707085253 | E190: 罗甸县 | F190: 小学 | G190: 数学 | H190: 合格
A191: 188 | B191: 韦成美 | C191: ld2020210 | D191: 522326199511011428 | E191: 罗甸县 | F191: 小学 | G191: 数学 | H191: 合格
A192: 189 | B192: 崔远亮 | C192: ld2020205 | D192: 522225199509166015 | E192: 罗甸县 | F192: 小学 | G192: 数学 | H192: 合格
A193: 190 | B193: 郑邵酶 | C193: ld2020219 | D193: 522725199408200023 | E193: 罗甸县 | F193: 小学 | G193: 数学 | H193: 合格
A194: 191 | B194: 朱旺兴 | C194: ld2020275 | D194: 532531199508200811 | E194: 罗甸县 | F194: 小学 | G194: 数学 | H194: 合格
A195: 192 | B195: 蒲开明 | C195: ld2020261 | D195: 522728199611159811 | E195: 罗甸县 | F195: 小学 | G195: 数学 | H195: 合格
A196: 193 | B196: 何耐婉 | C196: ld2020273 | D196: 52272219960329162X | E196: 罗甸县 | F196: 小学 | G196: 数学 | H196: 合格
A197: 194 | B197: 王世娟 | C197: ld2020259 | D197: 522728199604034842 | E197: 罗甸县 | F197: 小学 | G197: 数学 | H197: 合格
A198: 195 | B198: 张超 | C198: ld2020230 | D198: 522228199508013139 | E198: 罗甸县 | F198: 小学 | G198: 数学 | H198: 合格
A199: 196 | B199: 何静 | C199: ld2020223 | D199: 522626199609093229 | E199: 罗甸县 | F199: 小学 | G199: 数学 | H199: 合格
A200: 197 | B200: 谢文东 | C200: ld2020277 | D200: 522725199509284852 | E200: 罗甸县 | F200: 小学 | G200: 数学 | H200: 合格
... 106 more rows

Sheet 各考场参加面试人数及科目 (hidden)
A1: 罗甸县2020年特岗教师招聘考场科目安排情况统计
A3: 序号 | B3: 考场号 | C3: 考试科目 | D3: 面试人数 | E3: 备注
A4: 1 | B4: 第1考场 | C4: 语文 | D4: 33
A5: 2 | B5: 第2考场 | C5: 语文 | D5: 33
A6: 3 | B6: 第3考场 | C6: 语文 | D6: 33
A7: 4 | B7: 第4考场 | C7: 语文 | D7: 33
A8: 5 | B8: 第5考场 | C8: 语文、信息技术、数学 | D8: 32
A9: 6 | B9: 第6考场 | C9: 数学 | D9: 32
A10: 7 | B10: 第7考场 | C10: 数学 | D10: 32
A11: 8 | B11: 第8考场 | C11: 数学 | D11: 32
A12: 9 | B12: 第9考场 | C12: 数学、英语 | D12: 32
A13: 10 | B13: 第10考场 | C13: 英语 | D13: 32
A14: 11 | B14: 第11考场 | C14: 英语 | D14: 32
A15: 12 | B15: 第12考场 | C15: 英语 | D15: 32
A16: 13 | B16: 第13考场 | C16: 英语、物理 | D16: 32
A17: 14 | B17: 第14考场 | C17: 物理、地理、政治 | D17: 32
A18: 15 | B18: 第15考场 | C18: 政治、心理健康、历史 | D18: 32
A19: 16 | B19: 第16考场 | C19: 历史、生物、科学、化学 | D19: 32
A20: 17 | B20: 第17考场 | C20: 化学、综合 | D20: 33
A21: 18 | B21: 第18考场 | C21: 幼儿园、幼儿园（综合） | D21: 28
A22: 19 | B22: 第19考场 | C22: 幼儿园 | D22: 29
A23: 20 | B23: 第20考场 | C23: 幼儿园 | D23: 29
A24: 21 | B24: 第21考场 | C24: 幼儿园 | D24: 29
A25: 22 | B25: 第22考场 | C25: 幼儿园 | D25: 29
A26: 23 | B26: 第23考场 | C26: 幼儿园 | D26: 28
A27: 24 | B27: 第24考场 | C27: 幼儿园 | D27: 29
